{"text_format":"1","workbook":"xlsx","n_sheets":5,"sheets":["Titulní list","Seznam signálů","Alokace signálů","Návod na vyplnění","Číselníky"],"not_rendered":{"charts":0,"images":0,"macros":1,"external_links":1,"defined_names":7,"comments":0,"pivot_tables":0},"unopened":[],"bounds":{"document_bytes":16777216,"sheet_cells":100000,"rows_first":2000,"rows_last":500,"rows_between":2000,"halvings":0,"cell_chars":16384,"cell_head_chars":4096},"cells_cut":0,"cells_raw":0,"read":"whole","date_system":"1900"}

{"sheet":"Titulní list","index":0,"n_rows":38,"n_cols":82,"rows_kept":38,"cut":false,"hidden":false,"merged":[[5,81,7,81],[1,3,1,70],[1,79,2,82],[4,3,4,19],[4,20,4,36],[4,37,4,53],[4,54,4,70],[5,3,7,19],[5,20,7,36],[5,37,7,53],[5,80,7,80],[5,54,5,70],[10,43,11,52],[13,3,13,19],[13,20,15,53],[13,54,13,62],[14,63,16,70],[16,3,16,19],[16,20,18,53],[10,9,11,18],[10,26,11,35],[9,54,12,70],[19,3,19,19],[19,54,19,62],[20,20,22,53],[20,63,21,70],[23,3,23,19],[23,54,23,62],[23,63,24,70],[24,16,27,53],[25,54,25,62],[25,63,26,70],[27,54,27,62],[27,63,28,70],[37,3,40,70],[29,80,34,81],[29,54,30,62],[29,63,30,70],[36,3,36,70],[32,3,33,20],[32,21,33,38],[32,39,33,44],[32,45,33,70],[31,3,31,20],[31,21,31,38],[31,39,31,44],[31,45,31,70],[34,39,34,44]]}
[]
[null,null,null,"Titulní list",null,null,null,null,null,null,null,null,null,null,null,null,null,null,null,null,null,null,null,null,null,null,null,null,null,null,null,null,null,null,null,null,null,null,null,null,null,null,null,null,null,null,null,null,null,null,null,null,null,null,null,null,null,null,null,null,null,null,null,null,null,null,null,null,null,null,null,null,null,null,null,null,null,null,null,"Při vyplňování položek Titulního listu postupujte podle pokynů uvedených ve \nStandardu ČEZ_ST_0093 (Požadavky na projektovou a související dokumentaci)"]
[]
[]
[null,null,null,"VYPRACOVAL:",null,null,null,null,null,null,null,null,null,null,null,null,null,null,null,null,"KONTROLOVAL:",null,null,null,null,null,null,null,null,null,null,null,null,null,null,null,null,"HIP:",null,null,null,null,null,null,null,null,null,null,null,null,null,null,null,null,"PROJEKTOVÁ FIRMA:"]
[null,null,null,{"$f":"CD9","v":" "},null,null,null,null,null,null,null,null,null,null,null,null,null,null,null,null,{"$f":"CD10","v":" "},null,null,null,null,null,null,null,null,null,null,null,null,null,null,null,null,{"$f":"CD11","v":" "},null,null,null,null,null,null,null,null,null,null,null,null,null,null,null,null,"logo:",null,null,null,null,null,null,null,null,null,null,null,null,null,null,null,null,null,null,null,null,null,null,null,null,null,"Položka Titulního listu","Údaje vyplněné v tomto sloupci jsou automaticky přenášeny na příslušné místo v Titulním Listu\nŘÁDKY VYPLŇUJTE POSTUPNĚ SHORA DOLŮ"]
[]
[]
[null,null,null,null,null,null,null,null,null,null,null,null,null,null,null,null,null,null,null,null,null,null,null,null,null,null,null,null,null,null,null,null,null,null,null,null,null,null,null,null,null,null,null,null,null,null,null,null,null,null,null,null,null,null,{"$f":"CD12","v":" "},null,null,null,null,null,null,null,null,null,null,null,null,null,null,null,null,null,null,null,null,null,null,null,null,null,"VYPRACOVAL:"," "]
[null,null,null,"INVESTOR:",null,null,null,null,null,null,null,null,null,null,null,null,null,null,null,null,"LOKALITA:",null,null,null,null,null,null,null,null,null,null,null,null,null,null,null,null,"DATUM:",null,null,null,null,null,null,null,null,null,null,null,null,null,null,null,null,null,null,null,null,null,null,null,null,null,null,null,null,null,null,null,null,null,null,null,null,null,null,null,null,null,null,"KONTROLOVAL:"," "]
[null,null,null,null,null,null,null,null,null,{"$f":"CD13","v":" "},null,null,null,null,null,null,null,null,null,null,null,null,null,null,null,null,{"$f":"CD14","v":" "},null,null,null,null,null,null,null,null,null,null,null,null,null,null,null,null,{"$f":"CD15","v":" "},null,null,null,null,null,null,null,null,null,null,null,null,null,null,null,null,null,null,null,null,null,null,null,null,null,null,null,null,null,null,null,null,null,null,null,null,"HIP:"," "]
[null,null,null,null,null,null,null,null,null,null,null,null,null,null,null,null,null,null,null,null,null,null,null,null,null,null,null,null,null,null,null,null,null,null,null,null,null,null,null,null,null,null,null,null,null,null,null,null,null,null,null,null,null,null,null,null,null,null,null,null,null,null,null,null,null,null,null,null,null,null,null,null,null,null,null,null,null,null,null,null,"PROJEKTOVÁ FIRMA:"," "]
[null,null,null,null,null,null,null,null,null,null,null,null,null,null,null,null,null,null,null,null,null,null,null,null,null,null,null,null,null,null,null,null,null,null,null,null,null,null,null,null,null,null,null,null,null,null,null,null,null,null,null,null,null,null,null,null,null,null,null,null,null,null,null,null,null,null,null,null,null,null,null,null,null,null,null,null,null,null,null,null,"INVESTOR:"," "]
[null,null,null,"ČÍSLO A NÁZEV AKCE:",null,null,null,null,null,null,null,null,null,null,null,null,null,null,null,null,{"$f":"CD16","v":" "},null,null,null,null,null,null,null,null,null,null,null,null,null,null,null,null,null,null,null,null,null,null,null,null,null,null,null,null,null,null,null,null,null,"PARE:",null,null,null,null,null,null,null,null,null,null,null,null,null,null,null,null,null,null,null,null,null,null,null,null,null,"LOKALITA:"," "]
[null,null,null,null,null,null,null,null,null,null,null,null,null,null,null,null,null,null,null,null,null,null,null,null,null,null,null,null,null,null,null,null,null,null,null,null,null,null,null,null,null,null,null,null,null,null,null,null,null,null,null,null,null,null,null,null,null,null,null,null,null,null,null,null,null,null,null,null,null,null,null,null,null,null,null,null,null,null,null,null,"DATUM:"," "]
[null,null,null,null,null,null,null,null,null,null,null,null,null,null,null,null,null,null,null,null,null,null,null,null,null,null,null,null,null,null,null,null,null,null,null,null,null,null,null,null,null,null,null,null,null,null,null,null,null,null,null,null,null,null,null,null,null,null,null,null,null,null,null,null,null,null,null,null,null,null,null,null,null,null,null,null,null,null,null,null,"ČÍSLO A NÁZEV AKCE:"," "]
[null,null,null,"ČÍSLO A NÁZEV SO / DPS:",null,null,null,null,null,null,null,null,null,null,null,null,null,null,null,null,{"$f":"CD17","v":" "},null,null,null,null,null,null,null,null,null,null,null,null,null,null,null,null,null,null,null,null,null,null,null,null,null,null,null,null,null,null,null,null,null,null,null,null,null,null,null,null,null,null,null,null,null,null,null,null,null,null,null,null,null,null,null,null,null,null,null,"ČÍSLO A NÁZEV SO / DPS:"," "]
[null,null,null,null,null,null,null,null,null,null,null,null,null,null,null,null,null,null,null,null,null,null,null,null,null,null,null,null,null,null,null,null,null,null,null,null,null,null,null,null,null,null,null,null,null,null,null,null,null,null,null,null,null,null,null,null,null,null,null,null,null,null,null,null,null,null,null,null,null,null,null,null,null,null,null,null,null,null,null,null,"SLOŽKA:"," "]
[null,null,null,null,null,null,null,null,null,null,null,null,null,null,null,null,null,null,null,null,null,null,null,null,null,null,null,null,null,null,null,null,null,null,null,null,null,null,null,null,null,null,null,null,null,null,null,null,null,null,null,null,null,null,null,null,null,null,null,null,null,null,null,null,null,null,null,null,null,null,null,null,null,null,null,null,null,null,null,null,"PARE:","při tisku zůstane prázdné - očíslujte ručně dle počtu výtisků"]
[null,null,null,"SLOŽKA:",null,null,null,null,null,null,null,null,null,null,null,null,null,null,null,null,null,null,null,null,null,null,null,null,null,null,null,null,null,null,null,null,null,null,null,null,null,null,null,null,null,null,null,null,null,null,null,null,null,null,"STUPEŇ:",null,null,null,null,null,null,null,null,null,null,null,null,null,null,null,null,null,null,null,null,null,null,null,null,null,"STUPEŇ:"," "]
[null,null,null,null,null,null,null,null,null,null,null,null,null,null,null,null,null,null,null,null,{"$f":"CD18","v":" "},null,null,null,null,null,null,null,null,null,null,null,null,null,null,null,null,null,null,null,null,null,null,null,null,null,null,null,null,null,null,null,null,null,null,null,null,null,null,null,null,null,null,{"$f":"CD20","v":" "},null,null,null,null,null,null,null,null,null,null,null,null,null,null,null,null,"POČET LISTŮ:"," "]
[null,null,null,null,null,null,null,null,null,null,null,null,null,null,null,null,null,null,null,null,null,null,null,null,null,null,null,null,null,null,null,null,null,null,null,null,null,null,null,null,null,null,null,null,null,null,null,null,null,null,null,null,null,null,null,null,null,null,null,null,null,null,null,null,null,null,null,null,null,null,null,null,null,null,null,null,null,null,null,null,"POŘ. ČÍSLO:"," "]
[null,null,null,null,null,null,null,null,null,null,null,null,null,null,null,null,null,null,null,null,null,null,null,null,null,null,null,null,null,null,null,null,null,null,null,null,null,null,null,null,null,null,null,null,null,null,null,null,null,null,null,null,null,null,null,null,null,null,null,null,null,null,null,null,null,null,null,null,null,null,null,null,null,null,null,null,null,null,null,null,"TYP / PODTYP:"," "]
[null,null,null,"NÁZEV DOKUMENTU:",null,null,null,null,null,null,null,null,null,null,null,null,null,null,null,null,null,null,null,null,null,null,null,null,null,null,null,null,null,null,null,null,null,null,null,null,null,null,null,null,null,null,null,null,null,null,null,null,null,null,"POČET LISTŮ:",null,null,null,null,null,null,null,null,{"$f":"CD21","v":" "},null,null,null,null,null,null,null,null,null,null,null,null,null,null,null,null,"ZAKÁZKA ČÍSLO:"," "]
[null,null,null,null,null,null,null,null,null,null,null,null,null,null,null,null,"SEZNAM SIGNÁLŮ A JEJICH ALOKACE",null,null,null,null,null,null,null,null,null,null,null,null,null,null,null,null,null,null,null,null,null,null,null,null,null,null,null,null,null,null,null,null,null,null,null,null,null,null,null,null,null,null,null,null,null,null,null,null,null,null,null,null,null,null,null,null,null,null,null,null,null,null,null,"DODAVATELSKÉ ČÍSLO:"," "]
[null,null,null,null,null,null,null,null,null,null,null,null,null,null,null,null,null,null,null,null,null,null,null,null,null,null,null,null,null,null,null,null,null,null,null,null,null,null,null,null,null,null,null,null,null,null,null,null,null,null,null,null,null,null,"POŘ. ČÍSLO:",null,null,null,null,null,null,null,null,{"$f":"CD22","v":" "},null,null,null,null,null,null,null,null,null,null,null,null,null,null,null,null,"REVIZE:"," "]
[null,null,null,null,null,null,null,null,null,null,null,null,null,null,null,null,null,null,null,null,null,null,null,null,null,null,null,null,null,null,null,null,null,null,null,null,null,null,null,null,null,null,null,null,null,null,null,null,null,null,null,null,null,null,null,null,null,null,null,null,null,null,null,null,null,null,null,null,null,null,null,null,null,null,null,null,null,null,null,null,"EL. SOUBOR:"," "]
[null,null,null,null,null,null,null,null,null,null,null,null,null,null,null,null,null,null,null,null,null,null,null,null,null,null,null,null,null,null,null,null,null,null,null,null,null,null,null,null,null,null,null,null,null,null,null,null,null,null,null,null,null,null,"TYP / PODTYP:",null,null,null,null,null,null,null,null,{"$f":"CD23","v":" "}]
[]
[null,null,null,null,null,null,null,null,null,null,null,null,null,null,null,null,null,null,null,null,null,null,null,null,null,null,null,null,null,null,null,null,null,null,null,null,null,null,null,null,null,null,null,null,null,null,null,null,null,null,null,null,null,null,"KÓD TŔÍDY DOKUMENTU:",null,null,null,null,null,null,null,null,"FP01",null,null,null,null,null,null,null,null,null,null,null,null,null,null,null,null,"DOPLNĚNÍ ČÍSELNÍKU:\nList \"Číselníky\" obsahuje číselníky používané v tomto formuláři. \nPokud Vám v některém číselníku použitém na listech v tomto sešitu bude chybět položka pro výběr, je možné jí zadat na listu \"Číselníky\" v příslušném číselníku do zeleně podbarvené buňky. Při vyplňování v tomto sešitu jí pak budete moci použít."]
[]
[null,null,null,"ZAKÁZKA ČÍSLO:",null,null,null,null,null,null,null,null,null,null,null,null,null,null,null,null,null,"DODAVATELSKÉ ČÍSLO:",null,null,null,null,null,null,null,null,null,null,null,null,null,null,null,null,null,"REVIZE:",null,null,null,null,null,"EL. SOUBOR:"]
[null,null,null,{"$f":"CD24","v":" "},null,null,null,null,null,null,null,null,null,null,null,null,null,null,null,null,null,{"$f":"CD25","v":" "},null,null,null,null,null,null,null,null,null,null,null,null,null,null,null,null,null,{"$f":"CD26","v":" "},null,null,null,null,null,{"$f":"CD27","v":" "}]
[]
[]
[]
[]
[null,null,null,"Tabulka \"Titulní list\" je zamčená. \nKonkrétní údaje (položky titulního listu) se do ní propíšou po jejich vyplnění v šedivě orámovaném okně napravo. \nModře podbarvená políčka obsahují výběr z nabídky.\nTisk Titulního listu je nastaven:      A4 na výšku, vycentrování vodorovně a přispůsobení listu na jednu stránku. "]

{"sheet":"Seznam signálů","index":1,"n_rows":1000,"n_cols":17,"rows_kept":1000,"cut":false,"hidden":false,"merged":[[0,2,0,3]]}
[null,null,"Ukázka vyplnění:"]
[null,"Tento sloupec se netiskne","10410L501.1:H","L-KONDENZÁTU V TECHNOL.KONDENZÁTORU TK1 > MAX","1L501.1:H","10410L501.1","H","BI","NO","24VDC","INT","HW",null,null,"-"]
["č. ř.","Kód třídy MATRIO\nvyplní se automaticky","Označení","Název","Označení pro HMI","Obvod","Kód signálu","Druh náv.","Logika","Úroveň","Napájení","HWSW","RsS min","RsS max","RsS jedn","Změna","Poznámka"]
[1,"EG_ Signál ASŘ / Datový port","1"]
[2,"EG_ Signál ASŘ / Datový port","2"]
[3,"EG_ Signál ASŘ / Datový port","3"]
[4,"EG_ Signál ASŘ / Datový port"]
[5,"EG_ Signál ASŘ / Datový port"]
[6,"EG_ Signál ASŘ / Datový port"]
[7,"EG_ Signál ASŘ / Datový port"]
[8,"EG_ Signál ASŘ / Datový port"]
[9,"EG_ Signál ASŘ / Datový port"]
[10,"EG_ Signál ASŘ / Datový port"]
[11,"EG_ Signál ASŘ / Datový port"]
[12,"EG_ Signál ASŘ / Datový port"]
[13,"EG_ Signál ASŘ / Datový port"]
[14,"EG_ Signál ASŘ / Datový port"]
[15,"EG_ Signál ASŘ / Datový port"]
[16,"EG_ Signál ASŘ / Datový port"]
[17,"EG_ Signál ASŘ / Datový port"]
[18,"EG_ Signál ASŘ / Datový port"]
[19,"EG_ Signál ASŘ / Datový port"]
[20,"EG_ Signál ASŘ / Datový port"]
[21,"EG_ Signál ASŘ / Datový port"]
[22,"EG_ Signál ASŘ / Datový port"]
[23,"EG_ Signál ASŘ / Datový port"]
[24,"EG_ Signál ASŘ / Datový port"]
[25,"EG_ Signál ASŘ / Datový port"]
[26,"EG_ Signál ASŘ / Datový port"]
[27,"EG_ Signál ASŘ / Datový port"]
[28,"EG_ Signál ASŘ / Datový port"]
[29,"EG_ Signál ASŘ / Datový port"]
[30,"EG_ Signál ASŘ / Datový port"]
[31,"EG_ Signál ASŘ / Datový port"]
[32,"EG_ Signál ASŘ / Datový port"]
[33,"EG_ Signál ASŘ / Datový port"]
[34,"EG_ Signál ASŘ / Datový port"]
[35,"EG_ Signál ASŘ / Datový port"]
[36,"EG_ Signál ASŘ / Datový port"]
[37,"EG_ Signál ASŘ / Datový port"]
[38,"EG_ Signál ASŘ / Datový port"]
[39,"EG_ Signál ASŘ / Datový port"]
[40,"EG_ Signál ASŘ / Datový port"]
[41,"EG_ Signál ASŘ / Datový port"]
[42,"EG_ Signál ASŘ / Datový port"]
[43,"EG_ Signál ASŘ / Datový port"]
[44,"EG_ Signál ASŘ / Datový port"]
[45,"EG_ Signál ASŘ / Datový port"]
[46,"EG_ Signál ASŘ / Datový port"]
[47,"EG_ Signál ASŘ / Datový port"]
[48,"EG_ Signál ASŘ / Datový port"]
[49,"EG_ Signál ASŘ / Datový port"]
[50,"EG_ Signál ASŘ / Datový port"]
[51,"EG_ Signál ASŘ / Datový port"]
[52,"EG_ Signál ASŘ / Datový port"]
[53,"EG_ Signál ASŘ / Datový port"]
[54,"EG_ Signál ASŘ / Datový port"]
[55,"EG_ Signál ASŘ / Datový port"]
[56,"EG_ Signál ASŘ / Datový port"]
[57,"EG_ Signál ASŘ / Datový port"]
[58,"EG_ Signál ASŘ / Datový port"]
[59,"EG_ Signál ASŘ / Datový port"]
[60,"EG_ Signál ASŘ / Datový port"]
[61,"EG_ Signál ASŘ / Datový port"]
[62,"EG_ Signál ASŘ / Datový port"]
[63,"EG_ Signál ASŘ / Datový port"]
[64,"EG_ Signál ASŘ / Datový port"]
[65,"EG_ Signál ASŘ / Datový port"]
[66,"EG_ Signál ASŘ / Datový port"]
[67,"EG_ Signál ASŘ / Datový port"]
[68,"EG_ Signál ASŘ / Datový port"]
[69,"EG_ Signál ASŘ / Datový port"]
[70,"EG_ Signál ASŘ / Datový port"]
[71,"EG_ Signál ASŘ / Datový port"]
[72,"EG_ Signál ASŘ / Datový port"]
[73,"EG_ Signál ASŘ / Datový port"]
[74,"EG_ Signál ASŘ / Datový port"]
[75,"EG_ Signál ASŘ / Datový port"]
[76,"EG_ Signál ASŘ / Datový port"]
[77,"EG_ Signál ASŘ / Datový port"]
[78,"EG_ Signál ASŘ / Datový port"]
[79,"EG_ Signál ASŘ / Datový port"]
[80,"EG_ Signál ASŘ / Datový port"]
[81,"EG_ Signál ASŘ / Datový port"]
[82,"EG_ Signál ASŘ / Datový port"]
[83,"EG_ Signál ASŘ / Datový port"]
[84,"EG_ Signál ASŘ / Datový port"]
[85,"EG_ Signál ASŘ / Datový port"]
[86,"EG_ Signál ASŘ / Datový port"]
[87,"EG_ Signál ASŘ / Datový port"]
[88,"EG_ Signál ASŘ / Datový port"]
[89,"EG_ Signál ASŘ / Datový port"]
[90,"EG_ Signál ASŘ / Datový port"]
[91,"EG_ Signál ASŘ / Datový port"]
[92,"EG_ Signál ASŘ / Datový port"]
[93,"EG_ Signál ASŘ / Datový port"]
[94,"EG_ Signál ASŘ / Datový port"]
[95,"EG_ Signál ASŘ / Datový port"]
[96,"EG_ Signál ASŘ / Datový port"]
[97,"EG_ Signál ASŘ / Datový port"]
[98,"EG_ Signál ASŘ / Datový port"]
[99,"EG_ Signál ASŘ / Datový port"]
[100,"EG_ Signál ASŘ / Datový port"]
[101,"EG_ Signál ASŘ / Datový port"]
[102,"EG_ Signál ASŘ / Datový port"]
[103,"EG_ Signál ASŘ / Datový port"]
[104,"EG_ Signál ASŘ / Datový port"]
[105,"EG_ Signál ASŘ / Datový port"]
[106,"EG_ Signál ASŘ / Datový port"]
[107,"EG_ Signál ASŘ / Datový port"]
[108,"EG_ Signál ASŘ / Datový port"]
[109,"EG_ Signál ASŘ / Datový port"]
[110,"EG_ Signál ASŘ / Datový port"]
[111,"EG_ Signál ASŘ / Datový port"]
[112,"EG_ Signál ASŘ / Datový port"]
[113,"EG_ Signál ASŘ / Datový port"]
[114,"EG_ Signál ASŘ / Datový port"]
[115,"EG_ Signál ASŘ / Datový port"]
[116,"EG_ Signál ASŘ / Datový port"]
[117,"EG_ Signál ASŘ / Datový port"]
[118,"EG_ Signál ASŘ / Datový port"]
[119,"EG_ Signál ASŘ / Datový port"]
[120,"EG_ Signál ASŘ / Datový port"]
[121,"EG_ Signál ASŘ / Datový port"]
[122,"EG_ Signál ASŘ / Datový port"]
[123,"EG_ Signál ASŘ / Datový port"]
[124,"EG_ Signál ASŘ / Datový port"]
[125,"EG_ Signál ASŘ / Datový port"]
[126,"EG_ Signál ASŘ / Datový port"]
[127,"EG_ Signál ASŘ / Datový port"]
[128,"EG_ Signál ASŘ / Datový port"]
[129,"EG_ Signál ASŘ / Datový port"]
[130,"EG_ Signál ASŘ / Datový port"]
[131,"EG_ Signál ASŘ / Datový port"]
[132,"EG_ Signál ASŘ / Datový port"]
[133,"EG_ Signál ASŘ / Datový port"]
[134,"EG_ Signál ASŘ / Datový port"]
[135,"EG_ Signál ASŘ / Datový port"]
[136,"EG_ Signál ASŘ / Datový port"]
[137,"EG_ Signál ASŘ / Datový port"]
[138,"EG_ Signál ASŘ / Datový port"]
[139,"EG_ Signál ASŘ / Datový port"]
[140,"EG_ Signál ASŘ / Datový port"]
[141,"EG_ Signál ASŘ / Datový port"]
[142,"EG_ Signál ASŘ / Datový port"]
[143,"EG_ Signál ASŘ / Datový port"]
[144,"EG_ Signál ASŘ / Datový port"]
[145,"EG_ Signál ASŘ / Datový port"]
[146,"EG_ Signál ASŘ / Datový port"]
[147,"EG_ Signál ASŘ / Datový port"]
[148,"EG_ Signál ASŘ / Datový port"]
[149,"EG_ Signál ASŘ / Datový port"]
[150,"EG_ Signál ASŘ / Datový port"]
[151,"EG_ Signál ASŘ / Datový port"]
[152,"EG_ Signál ASŘ / Datový port"]
[153,"EG_ Signál ASŘ / Datový port"]
[154,"EG_ Signál ASŘ / Datový port"]
[155,"EG_ Signál ASŘ / Datový port"]
[156,"EG_ Signál ASŘ / Datový port"]
[157,"EG_ Signál ASŘ / Datový port"]
[158,"EG_ Signál ASŘ / Datový port"]
[159,"EG_ Signál ASŘ / Datový port"]
[160,"EG_ Signál ASŘ / Datový port"]
[161,"EG_ Signál ASŘ / Datový port"]
[162,"EG_ Signál ASŘ / Datový port"]
[163,"EG_ Signál ASŘ / Datový port"]
[164,"EG_ Signál ASŘ / Datový port"]
[165,"EG_ Signál ASŘ / Datový port"]
[166,"EG_ Signál ASŘ / Datový port"]
[167,"EG_ Signál ASŘ / Datový port"]
[168,"EG_ Signál ASŘ / Datový port"]
[169,"EG_ Signál ASŘ / Datový port"]
[170,"EG_ Signál ASŘ / Datový port"]
[171,"EG_ Signál ASŘ / Datový port"]
[172,"EG_ Signál ASŘ / Datový port"]
[173,"EG_ Signál ASŘ / Datový port"]
[174,"EG_ Signál ASŘ / Datový port"]
[175,"EG_ Signál ASŘ / Datový port"]
[176,"EG_ Signál ASŘ / Datový port"]
[177,"EG_ Signál ASŘ / Datový port"]
[178,"EG_ Signál ASŘ / Datový port"]
[179,"EG_ Signál ASŘ / Datový port"]
[180,"EG_ Signál ASŘ / Datový port"]
[181,"EG_ Signál ASŘ / Datový port"]
[182,"EG_ Signál ASŘ / Datový port"]
[183,"EG_ Signál ASŘ / Datový port"]
[184,"EG_ Signál ASŘ / Datový port"]
[185,"EG_ Signál ASŘ / Datový port"]
[186,"EG_ Signál ASŘ / Datový port"]
[187,"EG_ Signál ASŘ / Datový port"]
[188,"EG_ Signál ASŘ / Datový port"]
[189,"EG_ Signál ASŘ / Datový port"]
[190,"EG_ Signál ASŘ / Datový port"]
[191,"EG_ Signál ASŘ / Datový port"]
[192,"EG_ Signál ASŘ / Datový port"]
[193,"EG_ Signál ASŘ / Datový port"]
[194,"EG_ Signál ASŘ / Datový port"]
[195,"EG_ Signál ASŘ / Datový port"]
[196,"EG_ Signál ASŘ / Datový port"]
[197,"EG_ Signál ASŘ / Datový port"]
[198,"EG_ Signál ASŘ / Datový port"]
[199,"EG_ Signál ASŘ / Datový port"]
[200,"EG_ Signál ASŘ / Datový port"]
[201,"EG_ Signál ASŘ / Datový port"]
[202,"EG_ Signál ASŘ / Datový port"]
[203,"EG_ Signál ASŘ / Datový port"]
[204,"EG_ Signál ASŘ / Datový port"]
[205,"EG_ Signál ASŘ / Datový port"]
[206,"EG_ Signál ASŘ / Datový port"]
[207,"EG_ Signál ASŘ / Datový port"]
[208,"EG_ Signál ASŘ / Datový port"]
[209,"EG_ Signál ASŘ / Datový port"]
[210,"EG_ Signál ASŘ / Datový port"]
[211,"EG_ Signál ASŘ / Datový port"]
[212,"EG_ Signál ASŘ / Datový port"]
[213,"EG_ Signál ASŘ / Datový port"]
[214,"EG_ Signál ASŘ / Datový port"]
[215,"EG_ Signál ASŘ / Datový port"]
[216,"EG_ Signál ASŘ / Datový port"]
[217,"EG_ Signál ASŘ / Datový port"]
[218,"EG_ Signál ASŘ / Datový port"]
[219,"EG_ Signál ASŘ / Datový port"]
[220,"EG_ Signál ASŘ / Datový port"]
[221,"EG_ Signál ASŘ / Datový port"]
[222,"EG_ Signál ASŘ / Datový port"]
[223,"EG_ Signál ASŘ / Datový port"]
[224,"EG_ Signál ASŘ / Datový port"]
[225,"EG_ Signál ASŘ / Datový port"]
[226,"EG_ Signál ASŘ / Datový port"]
[227,"EG_ Signál ASŘ / Datový port"]
[228,"EG_ Signál ASŘ / Datový port"]
[229,"EG_ Signál ASŘ / Datový port"]
[230,"EG_ Signál ASŘ / Datový port"]
[231,"EG_ Signál ASŘ / Datový port"]
[232,"EG_ Signál ASŘ / Datový port"]
[233,"EG_ Signál ASŘ / Datový port"]
[234,"EG_ Signál ASŘ / Datový port"]
[235,"EG_ Signál ASŘ / Datový port"]
[236,"EG_ Signál ASŘ / Datový port"]
[237,"EG_ Signál ASŘ / Datový port"]
[238,"EG_ Signál ASŘ / Datový port"]
[239,"EG_ Signál ASŘ / Datový port"]
[240,"EG_ Signál ASŘ / Datový port"]
[241,"EG_ Signál ASŘ / Datový port"]
[242,"EG_ Signál ASŘ / Datový port"]
[243,"EG_ Signál ASŘ / Datový port"]
[244,"EG_ Signál ASŘ / Datový port"]
[245,"EG_ Signál ASŘ / Datový port"]
[246,"EG_ Signál ASŘ / Datový port"]
[247,"EG_ Signál ASŘ / Datový port"]
[248,"EG_ Signál ASŘ / Datový port"]
[249,"EG_ Signál ASŘ / Datový port"]
[250,"EG_ Signál ASŘ / Datový port"]
[251,"EG_ Signál ASŘ / Datový port"]
[252,"EG_ Signál ASŘ / Datový port"]
[253,"EG_ Signál ASŘ / Datový port"]
[254,"EG_ Signál ASŘ / Datový port"]
[255,"EG_ Signál ASŘ / Datový port"]
[256,"EG_ Signál ASŘ / Datový port"]
[257,"EG_ Signál ASŘ / Datový port"]
[258,"EG_ Signál ASŘ / Datový port"]
[259,"EG_ Signál ASŘ / Datový port"]
[260,"EG_ Signál ASŘ / Datový port"]
[261,"EG_ Signál ASŘ / Datový port"]
[262,"EG_ Signál ASŘ / Datový port"]
[263,"EG_ Signál ASŘ / Datový port"]
[264,"EG_ Signál ASŘ / Datový port"]
[265,"EG_ Signál ASŘ / Datový port"]
[266,"EG_ Signál ASŘ / Datový port"]
[267,"EG_ Signál ASŘ / Datový port"]
[268,"EG_ Signál ASŘ / Datový port"]
[269,"EG_ Signál ASŘ / Datový port"]
[270,"EG_ Signál ASŘ / Datový port"]
[271,"EG_ Signál ASŘ / Datový port"]
[272,"EG_ Signál ASŘ / Datový port"]
[273,"EG_ Signál ASŘ / Datový port"]
[274,"EG_ Signál ASŘ / Datový port"]
[275,"EG_ Signál ASŘ / Datový port"]
[276,"EG_ Signál ASŘ / Datový port"]
[277,"EG_ Signál ASŘ / Datový port"]
[278,"EG_ Signál ASŘ / Datový port"]
[279,"EG_ Signál ASŘ / Datový port"]
[280,"EG_ Signál ASŘ / Datový port"]
[281,"EG_ Signál ASŘ / Datový port"]
[282,"EG_ Signál ASŘ / Datový port"]
[283,"EG_ Signál ASŘ / Datový port"]
[284,"EG_ Signál ASŘ / Datový port"]
[285,"EG_ Signál ASŘ / Datový port"]
[286,"EG_ Signál ASŘ / Datový port"]
[287,"EG_ Signál ASŘ / Datový port"]
[288,"EG_ Signál ASŘ / Datový port"]
[289,"EG_ Signál ASŘ / Datový port"]
[290,"EG_ Signál ASŘ / Datový port"]
[291,"EG_ Signál ASŘ / Datový port"]
[292,"EG_ Signál ASŘ / Datový port"]
[293,"EG_ Signál ASŘ / Datový port"]
[294,"EG_ Signál ASŘ / Datový port"]
[295,"EG_ Signál ASŘ / Datový port"]
[296,"EG_ Signál ASŘ / Datový port"]
[297,"EG_ Signál ASŘ / Datový port"]
[298,"EG_ Signál ASŘ / Datový port"]
[299,"EG_ Signál ASŘ / Datový port"]
[300,"EG_ Signál ASŘ / Datový port"]
[301,"EG_ Signál ASŘ / Datový port"]
[302,"EG_ Signál ASŘ / Datový port"]
[303,"EG_ Signál ASŘ / Datový port"]
[304,"EG_ Signál ASŘ / Datový port"]
[305,"EG_ Signál ASŘ / Datový port"]
[306,"EG_ Signál ASŘ / Datový port"]
[307,"EG_ Signál ASŘ / Datový port"]
[308,"EG_ Signál ASŘ / Datový port"]
[309,"EG_ Signál ASŘ / Datový port"]
[310,"EG_ Signál ASŘ / Datový port"]
[311,"EG_ Signál ASŘ / Datový port"]
[312,"EG_ Signál ASŘ / Datový port"]
[313,"EG_ Signál ASŘ / Datový port"]
[314,"EG_ Signál ASŘ / Datový port"]
[315,"EG_ Signál ASŘ / Datový port"]
[316,"EG_ Signál ASŘ / Datový port"]
[317,"EG_ Signál ASŘ / Datový port"]
[318,"EG_ Signál ASŘ / Datový port"]
[319,"EG_ Signál ASŘ / Datový port"]
[320,"EG_ Signál ASŘ / Datový port"]
[321,"EG_ Signál ASŘ / Datový port"]
[322,"EG_ Signál ASŘ / Datový port"]
[323,"EG_ Signál ASŘ / Datový port"]
[324,"EG_ Signál ASŘ / Datový port"]
[325,"EG_ Signál ASŘ / Datový port"]
[326,"EG_ Signál ASŘ / Datový port"]
[327,"EG_ Signál ASŘ / Datový port"]
[328,"EG_ Signál ASŘ / Datový port"]
[329,"EG_ Signál ASŘ / Datový port"]
[330,"EG_ Signál ASŘ / Datový port"]
[331,"EG_ Signál ASŘ / Datový port"]
[332,"EG_ Signál ASŘ / Datový port"]
[333,"EG_ Signál ASŘ / Datový port"]
[334,"EG_ Signál ASŘ / Datový port"]
[335,"EG_ Signál ASŘ / Datový port"]
[336,"EG_ Signál ASŘ / Datový port"]
[337,"EG_ Signál ASŘ / Datový port"]
[338,"EG_ Signál ASŘ / Datový port"]
[339,"EG_ Signál ASŘ / Datový port"]
[340,"EG_ Signál ASŘ / Datový port"]
[341,"EG_ Signál ASŘ / Datový port"]
[342,"EG_ Signál ASŘ / Datový port"]
[343,"EG_ Signál ASŘ / Datový port"]
[344,"EG_ Signál ASŘ / Datový port"]
[345,"EG_ Signál ASŘ / Datový port"]
[346,"EG_ Signál ASŘ / Datový port"]
[347,"EG_ Signál ASŘ / Datový port"]
[348,"EG_ Signál ASŘ / Datový port"]
[349,"EG_ Signál ASŘ / Datový port"]
[350,"EG_ Signál ASŘ / Datový port"]
[351,"EG_ Signál ASŘ / Datový port"]
[352,"EG_ Signál ASŘ / Datový port"]
[353,"EG_ Signál ASŘ / Datový port"]
[354,"EG_ Signál ASŘ / Datový port"]
[355,"EG_ Signál ASŘ / Datový port"]
[356,"EG_ Signál ASŘ / Datový port"]
[357,"EG_ Signál ASŘ / Datový port"]
[358,"EG_ Signál ASŘ / Datový port"]
[359,"EG_ Signál ASŘ / Datový port"]
[360,"EG_ Signál ASŘ / Datový port"]
[361,"EG_ Signál ASŘ / Datový port"]
[362,"EG_ Signál ASŘ / Datový port"]
[363,"EG_ Signál ASŘ / Datový port"]
[364,"EG_ Signál ASŘ / Datový port"]
[365,"EG_ Signál ASŘ / Datový port"]
[366,"EG_ Signál ASŘ / Datový port"]
[367,"EG_ Signál ASŘ / Datový port"]
[368,"EG_ Signál ASŘ / Datový port"]
[369,"EG_ Signál ASŘ / Datový port"]
[370,"EG_ Signál ASŘ / Datový port"]
[371,"EG_ Signál ASŘ / Datový port"]
[372,"EG_ Signál ASŘ / Datový port"]
[373,"EG_ Signál ASŘ / Datový port"]
[374,"EG_ Signál ASŘ / Datový port"]
[375,"EG_ Signál ASŘ / Datový port"]
[376,"EG_ Signál ASŘ / Datový port"]
[377,"EG_ Signál ASŘ / Datový port"]
[378,"EG_ Signál ASŘ / Datový port"]
[379,"EG_ Signál ASŘ / Datový port"]
[380,"EG_ Signál ASŘ / Datový port"]
[381,"EG_ Signál ASŘ / Datový port"]
[382,"EG_ Signál ASŘ / Datový port"]
[383,"EG_ Signál ASŘ / Datový port"]
[384,"EG_ Signál ASŘ / Datový port"]
[385,"EG_ Signál ASŘ / Datový port"]
[386,"EG_ Signál ASŘ / Datový port"]
[387,"EG_ Signál ASŘ / Datový port"]
[388,"EG_ Signál ASŘ / Datový port"]
[389,"EG_ Signál ASŘ / Datový port"]
[390,"EG_ Signál ASŘ / Datový port"]
[391,"EG_ Signál ASŘ / Datový port"]
[392,"EG_ Signál ASŘ / Datový port"]
[393,"EG_ Signál ASŘ / Datový port"]
[394,"EG_ Signál ASŘ / Datový port"]
[395,"EG_ Signál ASŘ / Datový port"]
[396,"EG_ Signál ASŘ / Datový port"]
[397,"EG_ Signál ASŘ / Datový port"]
[398,"EG_ Signál ASŘ / Datový port"]
[399,"EG_ Signál ASŘ / Datový port"]
[400,"EG_ Signál ASŘ / Datový port"]
[401,"EG_ Signál ASŘ / Datový port"]
[402,"EG_ Signál ASŘ / Datový port"]
[403,"EG_ Signál ASŘ / Datový port"]
[404,"EG_ Signál ASŘ / Datový port"]
[405,"EG_ Signál ASŘ / Datový port"]
[406,"EG_ Signál ASŘ / Datový port"]
[407,"EG_ Signál ASŘ / Datový port"]
[408,"EG_ Signál ASŘ / Datový port"]
[409,"EG_ Signál ASŘ / Datový port"]
[410,"EG_ Signál ASŘ / Datový port"]
[411,"EG_ Signál ASŘ / Datový port"]
[412,"EG_ Signál ASŘ / Datový port"]
[413,"EG_ Signál ASŘ / Datový port"]
[414,"EG_ Signál ASŘ / Datový port"]
[415,"EG_ Signál ASŘ / Datový port"]
[416,"EG_ Signál ASŘ / Datový port"]
[417,"EG_ Signál ASŘ / Datový port"]
[418,"EG_ Signál ASŘ / Datový port"]
[419,"EG_ Signál ASŘ / Datový port"]
[420,"EG_ Signál ASŘ / Datový port"]
[421,"EG_ Signál ASŘ / Datový port"]
[422,"EG_ Signál ASŘ / Datový port"]
[423,"EG_ Signál ASŘ / Datový port"]
[424,"EG_ Signál ASŘ / Datový port"]
[425,"EG_ Signál ASŘ / Datový port"]
[426,"EG_ Signál ASŘ / Datový port"]
[427,"EG_ Signál ASŘ / Datový port"]
[428,"EG_ Signál ASŘ / Datový port"]
[429,"EG_ Signál ASŘ / Datový port"]
[430,"EG_ Signál ASŘ / Datový port"]
[431,"EG_ Signál ASŘ / Datový port"]
[432,"EG_ Signál ASŘ / Datový port"]
[433,"EG_ Signál ASŘ / Datový port"]
[434,"EG_ Signál ASŘ / Datový port"]
[435,"EG_ Signál ASŘ / Datový port"]
[436,"EG_ Signál ASŘ / Datový port"]
[437,"EG_ Signál ASŘ / Datový port"]
[438,"EG_ Signál ASŘ / Datový port"]
[439,"EG_ Signál ASŘ / Datový port"]
[440,"EG_ Signál ASŘ / Datový port"]
[441,"EG_ Signál ASŘ / Datový port"]
[442,"EG_ Signál ASŘ / Datový port"]
[443,"EG_ Signál ASŘ / Datový port"]
[444,"EG_ Signál ASŘ / Datový port"]
[445,"EG_ Signál ASŘ / Datový port"]
[446,"EG_ Signál ASŘ / Datový port"]
[447,"EG_ Signál ASŘ / Datový port"]
[448,"EG_ Signál ASŘ / Datový port"]
[449,"EG_ Signál ASŘ / Datový port"]
[450,"EG_ Signál ASŘ / Datový port"]
[451,"EG_ Signál ASŘ / Datový port"]
[452,"EG_ Signál ASŘ / Datový port"]
[453,"EG_ Signál ASŘ / Datový port"]
[454,"EG_ Signál ASŘ / Datový port"]
[455,"EG_ Signál ASŘ / Datový port"]
[456,"EG_ Signál ASŘ / Datový port"]
[457,"EG_ Signál ASŘ / Datový port"]
[458,"EG_ Signál ASŘ / Datový port"]
[459,"EG_ Signál ASŘ / Datový port"]
[460,"EG_ Signál ASŘ / Datový port"]
[461,"EG_ Signál ASŘ / Datový port"]
[462,"EG_ Signál ASŘ / Datový port"]
[463,"EG_ Signál ASŘ / Datový port"]
[464,"EG_ Signál ASŘ / Datový port"]
[465,"EG_ Signál ASŘ / Datový port"]
[466,"EG_ Signál ASŘ / Datový port"]
[467,"EG_ Signál ASŘ / Datový port"]
[468,"EG_ Signál ASŘ / Datový port"]
[469,"EG_ Signál ASŘ / Datový port"]
[470,"EG_ Signál ASŘ / Datový port"]
[471,"EG_ Signál ASŘ / Datový port"]
[472,"EG_ Signál ASŘ / Datový port"]
[473,"EG_ Signál ASŘ / Datový port"]
[474,"EG_ Signál ASŘ / Datový port"]
[475,"EG_ Signál ASŘ / Datový port"]
[476,"EG_ Signál ASŘ / Datový port"]
[477,"EG_ Signál ASŘ / Datový port"]
[478,"EG_ Signál ASŘ / Datový port"]
[479,"EG_ Signál ASŘ / Datový port"]
[480,"EG_ Signál ASŘ / Datový port"]
[481,"EG_ Signál ASŘ / Datový port"]
[482,"EG_ Signál ASŘ / Datový port"]
[483,"EG_ Signál ASŘ / Datový port"]
[484,"EG_ Signál ASŘ / Datový port"]
[485,"EG_ Signál ASŘ / Datový port"]
[486,"EG_ Signál ASŘ / Datový port"]
[487,"EG_ Signál ASŘ / Datový port"]
[488,"EG_ Signál ASŘ / Datový port"]
[489,"EG_ Signál ASŘ / Datový port"]
[490,"EG_ Signál ASŘ / Datový port"]
[491,"EG_ Signál ASŘ / Datový port"]
[492,"EG_ Signál ASŘ / Datový port"]
[493,"EG_ Signál ASŘ / Datový port"]
[494,"EG_ Signál ASŘ / Datový port"]
[495,"EG_ Signál ASŘ / Datový port"]
[496,"EG_ Signál ASŘ / Datový port"]
[497,"EG_ Signál ASŘ / Datový port"]
[498,"EG_ Signál ASŘ / Datový port"]
[499,"EG_ Signál ASŘ / Datový port"]
[500,"EG_ Signál ASŘ / Datový port"]
[501,"EG_ Signál ASŘ / Datový port"]
[502,"EG_ Signál ASŘ / Datový port"]
[503,"EG_ Signál ASŘ / Datový port"]
[504,"EG_ Signál ASŘ / Datový port"]
[505,"EG_ Signál ASŘ / Datový port"]
[506,"EG_ Signál ASŘ / Datový port"]
[507,"EG_ Signál ASŘ / Datový port"]
[508,"EG_ Signál ASŘ / Datový port"]
[509,"EG_ Signál ASŘ / Datový port"]
[510,"EG_ Signál ASŘ / Datový port"]
[511,"EG_ Signál ASŘ / Datový port"]
[512,"EG_ Signál ASŘ / Datový port"]
[513,"EG_ Signál ASŘ / Datový port"]
[514,"EG_ Signál ASŘ / Datový port"]
[515,"EG_ Signál ASŘ / Datový port"]
[516,"EG_ Signál ASŘ / Datový port"]
[517,"EG_ Signál ASŘ / Datový port"]
[518,"EG_ Signál ASŘ / Datový port"]
[519,"EG_ Signál ASŘ / Datový port"]
[520,"EG_ Signál ASŘ / Datový port"]
[521,"EG_ Signál ASŘ / Datový port"]
[522,"EG_ Signál ASŘ / Datový port"]
[523,"EG_ Signál ASŘ / Datový port"]
[524,"EG_ Signál ASŘ / Datový port"]
[525,"EG_ Signál ASŘ / Datový port"]
[526,"EG_ Signál ASŘ / Datový port"]
[527,"EG_ Signál ASŘ / Datový port"]
[528,"EG_ Signál ASŘ / Datový port"]
[529,"EG_ Signál ASŘ / Datový port"]
[530,"EG_ Signál ASŘ / Datový port"]
[531,"EG_ Signál ASŘ / Datový port"]
[532,"EG_ Signál ASŘ / Datový port"]
[533,"EG_ Signál ASŘ / Datový port"]
[534,"EG_ Signál ASŘ / Datový port"]
[535,"EG_ Signál ASŘ / Datový port"]
[536,"EG_ Signál ASŘ / Datový port"]
[537,"EG_ Signál ASŘ / Datový port"]
[538,"EG_ Signál ASŘ / Datový port"]
[539,"EG_ Signál ASŘ / Datový port"]
[540,"EG_ Signál ASŘ / Datový port"]
[541,"EG_ Signál ASŘ / Datový port"]
[542,"EG_ Signál ASŘ / Datový port"]
[543,"EG_ Signál ASŘ / Datový port"]
[544,"EG_ Signál ASŘ / Datový port"]
[545,"EG_ Signál ASŘ / Datový port"]
[546,"EG_ Signál ASŘ / Datový port"]
[547,"EG_ Signál ASŘ / Datový port"]
[548,"EG_ Signál ASŘ / Datový port"]
[549,"EG_ Signál ASŘ / Datový port"]
[550,"EG_ Signál ASŘ / Datový port"]
[551,"EG_ Signál ASŘ / Datový port"]
[552,"EG_ Signál ASŘ / Datový port"]
[553,"EG_ Signál ASŘ / Datový port"]
[554,"EG_ Signál ASŘ / Datový port"]
[555,"EG_ Signál ASŘ / Datový port"]
[556,"EG_ Signál ASŘ / Datový port"]
[557,"EG_ Signál ASŘ / Datový port"]
[558,"EG_ Signál ASŘ / Datový port"]
[559,"EG_ Signál ASŘ / Datový port"]
[560,"EG_ Signál ASŘ / Datový port"]
[561,"EG_ Signál ASŘ / Datový port"]
[562,"EG_ Signál ASŘ / Datový port"]
[563,"EG_ Signál ASŘ / Datový port"]
[564,"EG_ Signál ASŘ / Datový port"]
[565,"EG_ Signál ASŘ / Datový port"]
[566,"EG_ Signál ASŘ / Datový port"]
[567,"EG_ Signál ASŘ / Datový port"]
[568,"EG_ Signál ASŘ / Datový port"]
[569,"EG_ Signál ASŘ / Datový port"]
[570,"EG_ Signál ASŘ / Datový port"]
[571,"EG_ Signál ASŘ / Datový port"]
[572,"EG_ Signál ASŘ / Datový port"]
[573,"EG_ Signál ASŘ / Datový port"]
[574,"EG_ Signál ASŘ / Datový port"]
[575,"EG_ Signál ASŘ / Datový port"]
[576,"EG_ Signál ASŘ / Datový port"]
[577,"EG_ Signál ASŘ / Datový port"]
[578,"EG_ Signál ASŘ / Datový port"]
[579,"EG_ Signál ASŘ / Datový port"]
[580,"EG_ Signál ASŘ / Datový port"]
[581,"EG_ Signál ASŘ / Datový port"]
[582,"EG_ Signál ASŘ / Datový port"]
[583,"EG_ Signál ASŘ / Datový port"]
[584,"EG_ Signál ASŘ / Datový port"]
[585,"EG_ Signál ASŘ / Datový port"]
[586,"EG_ Signál ASŘ / Datový port"]
[587,"EG_ Signál ASŘ / Datový port"]
[588,"EG_ Signál ASŘ / Datový port"]
[589,"EG_ Signál ASŘ / Datový port"]
[590,"EG_ Signál ASŘ / Datový port"]
[591,"EG_ Signál ASŘ / Datový port"]
[592,"EG_ Signál ASŘ / Datový port"]
[593,"EG_ Signál ASŘ / Datový port"]
[594,"EG_ Signál ASŘ / Datový port"]
[595,"EG_ Signál ASŘ / Datový port"]
[596,"EG_ Signál ASŘ / Datový port"]
[597,"EG_ Signál ASŘ / Datový port"]
[598,"EG_ Signál ASŘ / Datový port"]
[599,"EG_ Signál ASŘ / Datový port"]
[600,"EG_ Signál ASŘ / Datový port"]
[601,"EG_ Signál ASŘ / Datový port"]
[602,"EG_ Signál ASŘ / Datový port"]
[603,"EG_ Signál ASŘ / Datový port"]
[604,"EG_ Signál ASŘ / Datový port"]
[605,"EG_ Signál ASŘ / Datový port"]
[606,"EG_ Signál ASŘ / Datový port"]
[607,"EG_ Signál ASŘ / Datový port"]
[608,"EG_ Signál ASŘ / Datový port"]
[609,"EG_ Signál ASŘ / Datový port"]
[610,"EG_ Signál ASŘ / Datový port"]
[611,"EG_ Signál ASŘ / Datový port"]
[612,"EG_ Signál ASŘ / Datový port"]
[613,"EG_ Signál ASŘ / Datový port"]
[614,"EG_ Signál ASŘ / Datový port"]
[615,"EG_ Signál ASŘ / Datový port"]
[616,"EG_ Signál ASŘ / Datový port"]
[617,"EG_ Signál ASŘ / Datový port"]
[618,"EG_ Signál ASŘ / Datový port"]
[619,"EG_ Signál ASŘ / Datový port"]
[620,"EG_ Signál ASŘ / Datový port"]
[621,"EG_ Signál ASŘ / Datový port"]
[622,"EG_ Signál ASŘ / Datový port"]
[623,"EG_ Signál ASŘ / Datový port"]
[624,"EG_ Signál ASŘ / Datový port"]
[625,"EG_ Signál ASŘ / Datový port"]
[626,"EG_ Signál ASŘ / Datový port"]
[627,"EG_ Signál ASŘ / Datový port"]
[628,"EG_ Signál ASŘ / Datový port"]
[629,"EG_ Signál ASŘ / Datový port"]
[630,"EG_ Signál ASŘ / Datový port"]
[631,"EG_ Signál ASŘ / Datový port"]
[632,"EG_ Signál ASŘ / Datový port"]
[633,"EG_ Signál ASŘ / Datový port"]
[634,"EG_ Signál ASŘ / Datový port"]
[635,"EG_ Signál ASŘ / Datový port"]
[636,"EG_ Signál ASŘ / Datový port"]
[637,"EG_ Signál ASŘ / Datový port"]
[638,"EG_ Signál ASŘ / Datový port"]
[639,"EG_ Signál ASŘ / Datový port"]
[640,"EG_ Signál ASŘ / Datový port"]
[641,"EG_ Signál ASŘ / Datový port"]
[642,"EG_ Signál ASŘ / Datový port"]
[643,"EG_ Signál ASŘ / Datový port"]
[644,"EG_ Signál ASŘ / Datový port"]
[645,"EG_ Signál ASŘ / Datový port"]
[646,"EG_ Signál ASŘ / Datový port"]
[647,"EG_ Signál ASŘ / Datový port"]
[648,"EG_ Signál ASŘ / Datový port"]
[649,"EG_ Signál ASŘ / Datový port"]
[650,"EG_ Signál ASŘ / Datový port"]
[651,"EG_ Signál ASŘ / Datový port"]
[652,"EG_ Signál ASŘ / Datový port"]
[653,"EG_ Signál ASŘ / Datový port"]
[654,"EG_ Signál ASŘ / Datový port"]
[655,"EG_ Signál ASŘ / Datový port"]
[656,"EG_ Signál ASŘ / Datový port"]
[657,"EG_ Signál ASŘ / Datový port"]
[658,"EG_ Signál ASŘ / Datový port"]
[659,"EG_ Signál ASŘ / Datový port"]
[660,"EG_ Signál ASŘ / Datový port"]
[661,"EG_ Signál ASŘ / Datový port"]
[662,"EG_ Signál ASŘ / Datový port"]
[663,"EG_ Signál ASŘ / Datový port"]
[664,"EG_ Signál ASŘ / Datový port"]
[665,"EG_ Signál ASŘ / Datový port"]
[666,"EG_ Signál ASŘ / Datový port"]
[667,"EG_ Signál ASŘ / Datový port"]
[668,"EG_ Signál ASŘ / Datový port"]
[669,"EG_ Signál ASŘ / Datový port"]
[670,"EG_ Signál ASŘ / Datový port"]
[671,"EG_ Signál ASŘ / Datový port"]
[672,"EG_ Signál ASŘ / Datový port"]
[673,"EG_ Signál ASŘ / Datový port"]
[674,"EG_ Signál ASŘ / Datový port"]
[675,"EG_ Signál ASŘ / Datový port"]
[676,"EG_ Signál ASŘ / Datový port"]
[677,"EG_ Signál ASŘ / Datový port"]
[678,"EG_ Signál ASŘ / Datový port"]
[679,"EG_ Signál ASŘ / Datový port"]
[680,"EG_ Signál ASŘ / Datový port"]
[681,"EG_ Signál ASŘ / Datový port"]
[682,"EG_ Signál ASŘ / Datový port"]
[683,"EG_ Signál ASŘ / Datový port"]
[684,"EG_ Signál ASŘ / Datový port"]
[685,"EG_ Signál ASŘ / Datový port"]
[686,"EG_ Signál ASŘ / Datový port"]
[687,"EG_ Signál ASŘ / Datový port"]
[688,"EG_ Signál ASŘ / Datový port"]
[689,"EG_ Signál ASŘ / Datový port"]
[690,"EG_ Signál ASŘ / Datový port"]
[691,"EG_ Signál ASŘ / Datový port"]
[692,"EG_ Signál ASŘ / Datový port"]
[693,"EG_ Signál ASŘ / Datový port"]
[694,"EG_ Signál ASŘ / Datový port"]
[695,"EG_ Signál ASŘ / Datový port"]
[696,"EG_ Signál ASŘ / Datový port"]
[697,"EG_ Signál ASŘ / Datový port"]
[698,"EG_ Signál ASŘ / Datový port"]
[699,"EG_ Signál ASŘ / Datový port"]
[700,"EG_ Signál ASŘ / Datový port"]
[701,"EG_ Signál ASŘ / Datový port"]
[702,"EG_ Signál ASŘ / Datový port"]
[703,"EG_ Signál ASŘ / Datový port"]
[704,"EG_ Signál ASŘ / Datový port"]
[705,"EG_ Signál ASŘ / Datový port"]
[706,"EG_ Signál ASŘ / Datový port"]
[707,"EG_ Signál ASŘ / Datový port"]
[708,"EG_ Signál ASŘ / Datový port"]
[709,"EG_ Signál ASŘ / Datový port"]
[710,"EG_ Signál ASŘ / Datový port"]
[711,"EG_ Signál ASŘ / Datový port"]
[712,"EG_ Signál ASŘ / Datový port"]
[713,"EG_ Signál ASŘ / Datový port"]
[714,"EG_ Signál ASŘ / Datový port"]
[715,"EG_ Signál ASŘ / Datový port"]
[716,"EG_ Signál ASŘ / Datový port"]
[717,"EG_ Signál ASŘ / Datový port"]
[718,"EG_ Signál ASŘ / Datový port"]
[719,"EG_ Signál ASŘ / Datový port"]
[720,"EG_ Signál ASŘ / Datový port"]
[721,"EG_ Signál ASŘ / Datový port"]
[722,"EG_ Signál ASŘ / Datový port"]
[723,"EG_ Signál ASŘ / Datový port"]
[724,"EG_ Signál ASŘ / Datový port"]
[725,"EG_ Signál ASŘ / Datový port"]
[726,"EG_ Signál ASŘ / Datový port"]
[727,"EG_ Signál ASŘ / Datový port"]
[728,"EG_ Signál ASŘ / Datový port"]
[729,"EG_ Signál ASŘ / Datový port"]
[730,"EG_ Signál ASŘ / Datový port"]
[731,"EG_ Signál ASŘ / Datový port"]
[732,"EG_ Signál ASŘ / Datový port"]
[733,"EG_ Signál ASŘ / Datový port"]
[734,"EG_ Signál ASŘ / Datový port"]
[735,"EG_ Signál ASŘ / Datový port"]
[736,"EG_ Signál ASŘ / Datový port"]
[737,"EG_ Signál ASŘ / Datový port"]
[738,"EG_ Signál ASŘ / Datový port"]
[739,"EG_ Signál ASŘ / Datový port"]
[740,"EG_ Signál ASŘ / Datový port"]
[741,"EG_ Signál ASŘ / Datový port"]
[742,"EG_ Signál ASŘ / Datový port"]
[743,"EG_ Signál ASŘ / Datový port"]
[744,"EG_ Signál ASŘ / Datový port"]
[745,"EG_ Signál ASŘ / Datový port"]
[746,"EG_ Signál ASŘ / Datový port"]
[747,"EG_ Signál ASŘ / Datový port"]
[748,"EG_ Signál ASŘ / Datový port"]
[749,"EG_ Signál ASŘ / Datový port"]
[750,"EG_ Signál ASŘ / Datový port"]
[751,"EG_ Signál ASŘ / Datový port"]
[752,"EG_ Signál ASŘ / Datový port"]
[753,"EG_ Signál ASŘ / Datový port"]
[754,"EG_ Signál ASŘ / Datový port"]
[755,"EG_ Signál ASŘ / Datový port"]
[756,"EG_ Signál ASŘ / Datový port"]
[757,"EG_ Signál ASŘ / Datový port"]
[758,"EG_ Signál ASŘ / Datový port"]
[759,"EG_ Signál ASŘ / Datový port"]
[760,"EG_ Signál ASŘ / Datový port"]
[761,"EG_ Signál ASŘ / Datový port"]
[762,"EG_ Signál ASŘ / Datový port"]
[763,"EG_ Signál ASŘ / Datový port"]
[764,"EG_ Signál ASŘ / Datový port"]
[765,"EG_ Signál ASŘ / Datový port"]
[766,"EG_ Signál ASŘ / Datový port"]
[767,"EG_ Signál ASŘ / Datový port"]
[768,"EG_ Signál ASŘ / Datový port"]
[769,"EG_ Signál ASŘ / Datový port"]
[770,"EG_ Signál ASŘ / Datový port"]
[771,"EG_ Signál ASŘ / Datový port"]
[772,"EG_ Signál ASŘ / Datový port"]
[773,"EG_ Signál ASŘ / Datový port"]
[774,"EG_ Signál ASŘ / Datový port"]
[775,"EG_ Signál ASŘ / Datový port"]
[776,"EG_ Signál ASŘ / Datový port"]
[777,"EG_ Signál ASŘ / Datový port"]
[778,"EG_ Signál ASŘ / Datový port"]
[779,"EG_ Signál ASŘ / Datový port"]
[780,"EG_ Signál ASŘ / Datový port"]
[781,"EG_ Signál ASŘ / Datový port"]
[782,"EG_ Signál ASŘ / Datový port"]
[783,"EG_ Signál ASŘ / Datový port"]
[784,"EG_ Signál ASŘ / Datový port"]
[785,"EG_ Signál ASŘ / Datový port"]
[786,"EG_ Signál ASŘ / Datový port"]
[787,"EG_ Signál ASŘ / Datový port"]
[788,"EG_ Signál ASŘ / Datový port"]
[789,"EG_ Signál ASŘ / Datový port"]
[790,"EG_ Signál ASŘ / Datový port"]
[791,"EG_ Signál ASŘ / Datový port"]
[792,"EG_ Signál ASŘ / Datový port"]
[793,"EG_ Signál ASŘ / Datový port"]
[794,"EG_ Signál ASŘ / Datový port"]
[795,"EG_ Signál ASŘ / Datový port"]
[796,"EG_ Signál ASŘ / Datový port"]
[797,"EG_ Signál ASŘ / Datový port"]
[798,"EG_ Signál ASŘ / Datový port"]
[799,"EG_ Signál ASŘ / Datový port"]
[800,"EG_ Signál ASŘ / Datový port"]
[801,"EG_ Signál ASŘ / Datový port"]
[802,"EG_ Signál ASŘ / Datový port"]
[803,"EG_ Signál ASŘ / Datový port"]
[804,"EG_ Signál ASŘ / Datový port"]
[805,"EG_ Signál ASŘ / Datový port"]
[806,"EG_ Signál ASŘ / Datový port"]
[807,"EG_ Signál ASŘ / Datový port"]
[808,"EG_ Signál ASŘ / Datový port"]
[809,"EG_ Signál ASŘ / Datový port"]
[810,"EG_ Signál ASŘ / Datový port"]
[811,"EG_ Signál ASŘ / Datový port"]
[812,"EG_ Signál ASŘ / Datový port"]
[813,"EG_ Signál ASŘ / Datový port"]
[814,"EG_ Signál ASŘ / Datový port"]
[815,"EG_ Signál ASŘ / Datový port"]
[816,"EG_ Signál ASŘ / Datový port"]
[817,"EG_ Signál ASŘ / Datový port"]
[818,"EG_ Signál ASŘ / Datový port"]
[819,"EG_ Signál ASŘ / Datový port"]
[820,"EG_ Signál ASŘ / Datový port"]
[821,"EG_ Signál ASŘ / Datový port"]
[822,"EG_ Signál ASŘ / Datový port"]
[823,"EG_ Signál ASŘ / Datový port"]
[824,"EG_ Signál ASŘ / Datový port"]
[825,"EG_ Signál ASŘ / Datový port"]
[826,"EG_ Signál ASŘ / Datový port"]
[827,"EG_ Signál ASŘ / Datový port"]
[828,"EG_ Signál ASŘ / Datový port"]
[829,"EG_ Signál ASŘ / Datový port"]
[830,"EG_ Signál ASŘ / Datový port"]
[831,"EG_ Signál ASŘ / Datový port"]
[832,"EG_ Signál ASŘ / Datový port"]
[833,"EG_ Signál ASŘ / Datový port"]
[834,"EG_ Signál ASŘ / Datový port"]
[835,"EG_ Signál ASŘ / Datový port"]
[836,"EG_ Signál ASŘ / Datový port"]
[837,"EG_ Signál ASŘ / Datový port"]
[838,"EG_ Signál ASŘ / Datový port"]
[839,"EG_ Signál ASŘ / Datový port"]
[840,"EG_ Signál ASŘ / Datový port"]
[841,"EG_ Signál ASŘ / Datový port"]
[842,"EG_ Signál ASŘ / Datový port"]
[843,"EG_ Signál ASŘ / Datový port"]
[844,"EG_ Signál ASŘ / Datový port"]
[845,"EG_ Signál ASŘ / Datový port"]
[846,"EG_ Signál ASŘ / Datový port"]
[847,"EG_ Signál ASŘ / Datový port"]
[848,"EG_ Signál ASŘ / Datový port"]
[849,"EG_ Signál ASŘ / Datový port"]
[850,"EG_ Signál ASŘ / Datový port"]
[851,"EG_ Signál ASŘ / Datový port"]
[852,"EG_ Signál ASŘ / Datový port"]
[853,"EG_ Signál ASŘ / Datový port"]
[854,"EG_ Signál ASŘ / Datový port"]
[855,"EG_ Signál ASŘ / Datový port"]
[856,"EG_ Signál ASŘ / Datový port"]
[857,"EG_ Signál ASŘ / Datový port"]
[858,"EG_ Signál ASŘ / Datový port"]
[859,"EG_ Signál ASŘ / Datový port"]
[860,"EG_ Signál ASŘ / Datový port"]
[861,"EG_ Signál ASŘ / Datový port"]
[862,"EG_ Signál ASŘ / Datový port"]
[863,"EG_ Signál ASŘ / Datový port"]
[864,"EG_ Signál ASŘ / Datový port"]
[865,"EG_ Signál ASŘ / Datový port"]
[866,"EG_ Signál ASŘ / Datový port"]
[867,"EG_ Signál ASŘ / Datový port"]
[868,"EG_ Signál ASŘ / Datový port"]
[869,"EG_ Signál ASŘ / Datový port"]
[870,"EG_ Signál ASŘ / Datový port"]
[871,"EG_ Signál ASŘ / Datový port"]
[872,"EG_ Signál ASŘ / Datový port"]
[873,"EG_ Signál ASŘ / Datový port"]
[874,"EG_ Signál ASŘ / Datový port"]
[875,"EG_ Signál ASŘ / Datový port"]
[876,"EG_ Signál ASŘ / Datový port"]
[877,"EG_ Signál ASŘ / Datový port"]
[878,"EG_ Signál ASŘ / Datový port"]
[879,"EG_ Signál ASŘ / Datový port"]
[880,"EG_ Signál ASŘ / Datový port"]
[881,"EG_ Signál ASŘ / Datový port"]
[882,"EG_ Signál ASŘ / Datový port"]
[883,"EG_ Signál ASŘ / Datový port"]
[884,"EG_ Signál ASŘ / Datový port"]
[885,"EG_ Signál ASŘ / Datový port"]
[886,"EG_ Signál ASŘ / Datový port"]
[887,"EG_ Signál ASŘ / Datový port"]
[888,"EG_ Signál ASŘ / Datový port"]
[889,"EG_ Signál ASŘ / Datový port"]
[890,"EG_ Signál ASŘ / Datový port"]
[891,"EG_ Signál ASŘ / Datový port"]
[892,"EG_ Signál ASŘ / Datový port"]
[893,"EG_ Signál ASŘ / Datový port"]
[894,"EG_ Signál ASŘ / Datový port"]
[895,"EG_ Signál ASŘ / Datový port"]
[896,"EG_ Signál ASŘ / Datový port"]
[897,"EG_ Signál ASŘ / Datový port"]
[898,"EG_ Signál ASŘ / Datový port"]
[899,"EG_ Signál ASŘ / Datový port"]
[900,"EG_ Signál ASŘ / Datový port"]
[901,"EG_ Signál ASŘ / Datový port"]
[902,"EG_ Signál ASŘ / Datový port"]
[903,"EG_ Signál ASŘ / Datový port"]
[904,"EG_ Signál ASŘ / Datový port"]
[905,"EG_ Signál ASŘ / Datový port"]
[906,"EG_ Signál ASŘ / Datový port"]
[907,"EG_ Signál ASŘ / Datový port"]
[908,"EG_ Signál ASŘ / Datový port"]
[909,"EG_ Signál ASŘ / Datový port"]
[910,"EG_ Signál ASŘ / Datový port"]
[911,"EG_ Signál ASŘ / Datový port"]
[912,"EG_ Signál ASŘ / Datový port"]
[913,"EG_ Signál ASŘ / Datový port"]
[914,"EG_ Signál ASŘ / Datový port"]
[915,"EG_ Signál ASŘ / Datový port"]
[916,"EG_ Signál ASŘ / Datový port"]
[917,"EG_ Signál ASŘ / Datový port"]
[918,"EG_ Signál ASŘ / Datový port"]
[919,"EG_ Signál ASŘ / Datový port"]
[920,"EG_ Signál ASŘ / Datový port"]
[921,"EG_ Signál ASŘ / Datový port"]
[922,"EG_ Signál ASŘ / Datový port"]
[923,"EG_ Signál ASŘ / Datový port"]
[924,"EG_ Signál ASŘ / Datový port"]
[925,"EG_ Signál ASŘ / Datový port"]
[926,"EG_ Signál ASŘ / Datový port"]
[927,"EG_ Signál ASŘ / Datový port"]
[928,"EG_ Signál ASŘ / Datový port"]
[929,"EG_ Signál ASŘ / Datový port"]
[930,"EG_ Signál ASŘ / Datový port"]
[931,"EG_ Signál ASŘ / Datový port"]
[932,"EG_ Signál ASŘ / Datový port"]
[933,"EG_ Signál ASŘ / Datový port"]
[934,"EG_ Signál ASŘ / Datový port"]
[935,"EG_ Signál ASŘ / Datový port"]
[936,"EG_ Signál ASŘ / Datový port"]
[937,"EG_ Signál ASŘ / Datový port"]
[938,"EG_ Signál ASŘ / Datový port"]
[939,"EG_ Signál ASŘ / Datový port"]
[940,"EG_ Signál ASŘ / Datový port"]
[941,"EG_ Signál ASŘ / Datový port"]
[942,"EG_ Signál ASŘ / Datový port"]
[943,"EG_ Signál ASŘ / Datový port"]
[944,"EG_ Signál ASŘ / Datový port"]
[945,"EG_ Signál ASŘ / Datový port"]
[946,"EG_ Signál ASŘ / Datový port"]
[947,"EG_ Signál ASŘ / Datový port"]
[948,"EG_ Signál ASŘ / Datový port"]
[949,"EG_ Signál ASŘ / Datový port"]
[950,"EG_ Signál ASŘ / Datový port"]
[951,"EG_ Signál ASŘ / Datový port"]
[952,"EG_ Signál ASŘ / Datový port"]
[953,"EG_ Signál ASŘ / Datový port"]
[954,"EG_ Signál ASŘ / Datový port"]
[955,"EG_ Signál ASŘ / Datový port"]
[956,"EG_ Signál ASŘ / Datový port"]
[957,"EG_ Signál ASŘ / Datový port"]
[958,"EG_ Signál ASŘ / Datový port"]
[959,"EG_ Signál ASŘ / Datový port"]
[960,"EG_ Signál ASŘ / Datový port"]
[961,"EG_ Signál ASŘ / Datový port"]
[962,"EG_ Signál ASŘ / Datový port"]
[963,"EG_ Signál ASŘ / Datový port"]
[964,"EG_ Signál ASŘ / Datový port"]
[965,"EG_ Signál ASŘ / Datový port"]
[966,"EG_ Signál ASŘ / Datový port"]
[967,"EG_ Signál ASŘ / Datový port"]
[968,"EG_ Signál ASŘ / Datový port"]
[969,"EG_ Signál ASŘ / Datový port"]
[970,"EG_ Signál ASŘ / Datový port"]
[971,"EG_ Signál ASŘ / Datový port"]
[972,"EG_ Signál ASŘ / Datový port"]
[973,"EG_ Signál ASŘ / Datový port"]
[974,"EG_ Signál ASŘ / Datový port"]
[975,"EG_ Signál ASŘ / Datový port"]
[976,"EG_ Signál ASŘ / Datový port"]
[977,"EG_ Signál ASŘ / Datový port"]
[978,"EG_ Signál ASŘ / Datový port"]
[979,"EG_ Signál ASŘ / Datový port"]
[980,"EG_ Signál ASŘ / Datový port"]
[981,"EG_ Signál ASŘ / Datový port"]
[982,"EG_ Signál ASŘ / Datový port"]
[983,"EG_ Signál ASŘ / Datový port"]
[984,"EG_ Signál ASŘ / Datový port"]
[985,"EG_ Signál ASŘ / Datový port"]
[986,"EG_ Signál ASŘ / Datový port"]
[987,"EG_ Signál ASŘ / Datový port"]
[988,"EG_ Signál ASŘ / Datový port"]
[989,"EG_ Signál ASŘ / Datový port"]
[990,"EG_ Signál ASŘ / Datový port"]
[991,"EG_ Signál ASŘ / Datový port"]
[992,"EG_ Signál ASŘ / Datový port"]
[993,"EG_ Signál ASŘ / Datový port"]
[994,"EG_ Signál ASŘ / Datový port"]
[995,"EG_ Signál ASŘ / Datový port"]
[996,"EG_ Signál ASŘ / Datový port"]
[997,"EG_ Signál ASŘ / Datový port"]

{"sheet":"Alokace signálů","index":2,"n_rows":1000,"n_cols":11,"rows_kept":1000,"cut":false,"hidden":false,"merged":[[0,2,0,3]]}
[null,null,"Ukázka vyplnění:"]
[null,"Tento sloupec se netiskne","10410L501.1:H","1DVK01","56","1","2","3","12","SOE"]
["č. ř.","Kód třídy MATRIO\nvyplní se automaticky","Označení signálu","Skříň IO","Procesor","Sběrnice","Rack","Pozice","Kanál","Modul IO","Poznámka"]
[1,"EG_ Signál ASŘ / Datový port","1"]
[2,"EG_ Signál ASŘ / Datový port"]
[3,"EG_ Signál ASŘ / Datový port"]
[4,"EG_ Signál ASŘ / Datový port"]
[5,"EG_ Signál ASŘ / Datový port"]
[6,"EG_ Signál ASŘ / Datový port"]
[7,"EG_ Signál ASŘ / Datový port"]
[8,"EG_ Signál ASŘ / Datový port"]
[9,"EG_ Signál ASŘ / Datový port"]
[10,"EG_ Signál ASŘ / Datový port"]
[11,"EG_ Signál ASŘ / Datový port"]
[12,"EG_ Signál ASŘ / Datový port"]
[13,"EG_ Signál ASŘ / Datový port"]
[14,"EG_ Signál ASŘ / Datový port"]
[15,"EG_ Signál ASŘ / Datový port"]
[16,"EG_ Signál ASŘ / Datový port"]
[17,"EG_ Signál ASŘ / Datový port"]
[18,"EG_ Signál ASŘ / Datový port"]
[19,"EG_ Signál ASŘ / Datový port"]
[20,"EG_ Signál ASŘ / Datový port"]
[21,"EG_ Signál ASŘ / Datový port"]
[22,"EG_ Signál ASŘ / Datový port"]
[23,"EG_ Signál ASŘ / Datový port"]
[24,"EG_ Signál ASŘ / Datový port"]
[25,"EG_ Signál ASŘ / Datový port"]
[26,"EG_ Signál ASŘ / Datový port"]
[27,"EG_ Signál ASŘ / Datový port"]
[28,"EG_ Signál ASŘ / Datový port"]
[29,"EG_ Signál ASŘ / Datový port"]
[30,"EG_ Signál ASŘ / Datový port"]
[31,"EG_ Signál ASŘ / Datový port"]
[32,"EG_ Signál ASŘ / Datový port"]
[33,"EG_ Signál ASŘ / Datový port"]
[34,"EG_ Signál ASŘ / Datový port"]
[35,"EG_ Signál ASŘ / Datový port"]
[36,"EG_ Signál ASŘ / Datový port"]
[37,"EG_ Signál ASŘ / Datový port"]
[38,"EG_ Signál ASŘ / Datový port"]
[39,"EG_ Signál ASŘ / Datový port"]
[40,"EG_ Signál ASŘ / Datový port"]
[41,"EG_ Signál ASŘ / Datový port"]
[42,"EG_ Signál ASŘ / Datový port"]
[43,"EG_ Signál ASŘ / Datový port"]
[44,"EG_ Signál ASŘ / Datový port"]
[45,"EG_ Signál ASŘ / Datový port"]
[46,"EG_ Signál ASŘ / Datový port"]
[47,"EG_ Signál ASŘ / Datový port"]
[48,"EG_ Signál ASŘ / Datový port"]
[49,"EG_ Signál ASŘ / Datový port"]
[50,"EG_ Signál ASŘ / Datový port"]
[51,"EG_ Signál ASŘ / Datový port"]
[52,"EG_ Signál ASŘ / Datový port"]
[53,"EG_ Signál ASŘ / Datový port"]
[54,"EG_ Signál ASŘ / Datový port"]
[55,"EG_ Signál ASŘ / Datový port"]
[56,"EG_ Signál ASŘ / Datový port"]
[57,"EG_ Signál ASŘ / Datový port"]
[58,"EG_ Signál ASŘ / Datový port"]
[59,"EG_ Signál ASŘ / Datový port"]
[60,"EG_ Signál ASŘ / Datový port"]
[61,"EG_ Signál ASŘ / Datový port"]
[62,"EG_ Signál ASŘ / Datový port"]
[63,"EG_ Signál ASŘ / Datový port"]
[64,"EG_ Signál ASŘ / Datový port"]
[65,"EG_ Signál ASŘ / Datový port"]
[66,"EG_ Signál ASŘ / Datový port"]
[67,"EG_ Signál ASŘ / Datový port"]
[68,"EG_ Signál ASŘ / Datový port"]
[69,"EG_ Signál ASŘ / Datový port"]
[70,"EG_ Signál ASŘ / Datový port"]
[71,"EG_ Signál ASŘ / Datový port"]
[72,"EG_ Signál ASŘ / Datový port"]
[73,"EG_ Signál ASŘ / Datový port"]
[74,"EG_ Signál ASŘ / Datový port"]
[75,"EG_ Signál ASŘ / Datový port"]
[76,"EG_ Signál ASŘ / Datový port"]
[77,"EG_ Signál ASŘ / Datový port"]
[78,"EG_ Signál ASŘ / Datový port"]
[79,"EG_ Signál ASŘ / Datový port"]
[80,"EG_ Signál ASŘ / Datový port"]
[81,"EG_ Signál ASŘ / Datový port"]
[82,"EG_ Signál ASŘ / Datový port"]
[83,"EG_ Signál ASŘ / Datový port"]
[84,"EG_ Signál ASŘ / Datový port"]
[85,"EG_ Signál ASŘ / Datový port"]
[86,"EG_ Signál ASŘ / Datový port"]
[87,"EG_ Signál ASŘ / Datový port"]
[88,"EG_ Signál ASŘ / Datový port"]
[89,"EG_ Signál ASŘ / Datový port"]
[90,"EG_ Signál ASŘ / Datový port"]
[91,"EG_ Signál ASŘ / Datový port"]
[92,"EG_ Signál ASŘ / Datový port"]
[93,"EG_ Signál ASŘ / Datový port"]
[94,"EG_ Signál ASŘ / Datový port"]
[95,"EG_ Signál ASŘ / Datový port"]
[96,"EG_ Signál ASŘ / Datový port"]
[97,"EG_ Signál ASŘ / Datový port"]
[98,"EG_ Signál ASŘ / Datový port"]
[99,"EG_ Signál ASŘ / Datový port"]
[100,"EG_ Signál ASŘ / Datový port"]
[101,"EG_ Signál ASŘ / Datový port"]
[102,"EG_ Signál ASŘ / Datový port"]
[103,"EG_ Signál ASŘ / Datový port"]
[104,"EG_ Signál ASŘ / Datový port"]
[105,"EG_ Signál ASŘ / Datový port"]
[106,"EG_ Signál ASŘ / Datový port"]
[107,"EG_ Signál ASŘ / Datový port"]
[108,"EG_ Signál ASŘ / Datový port"]
[109,"EG_ Signál ASŘ / Datový port"]
[110,"EG_ Signál ASŘ / Datový port"]
[111,"EG_ Signál ASŘ / Datový port"]
[112,"EG_ Signál ASŘ / Datový port"]
[113,"EG_ Signál ASŘ / Datový port"]
[114,"EG_ Signál ASŘ / Datový port"]
[115,"EG_ Signál ASŘ / Datový port"]
[116,"EG_ Signál ASŘ / Datový port"]
[117,"EG_ Signál ASŘ / Datový port"]
[118,"EG_ Signál ASŘ / Datový port"]
[119,"EG_ Signál ASŘ / Datový port"]
[120,"EG_ Signál ASŘ / Datový port"]
[121,"EG_ Signál ASŘ / Datový port"]
[122,"EG_ Signál ASŘ / Datový port"]
[123,"EG_ Signál ASŘ / Datový port"]
[124,"EG_ Signál ASŘ / Datový port"]
[125,"EG_ Signál ASŘ / Datový port"]
[126,"EG_ Signál ASŘ / Datový port"]
[127,"EG_ Signál ASŘ / Datový port"]
[128,"EG_ Signál ASŘ / Datový port"]
[129,"EG_ Signál ASŘ / Datový port"]
[130,"EG_ Signál ASŘ / Datový port"]
[131,"EG_ Signál ASŘ / Datový port"]
[132,"EG_ Signál ASŘ / Datový port"]
[133,"EG_ Signál ASŘ / Datový port"]
[134,"EG_ Signál ASŘ / Datový port"]
[135,"EG_ Signál ASŘ / Datový port"]
[136,"EG_ Signál ASŘ / Datový port"]
[137,"EG_ Signál ASŘ / Datový port"]
[138,"EG_ Signál ASŘ / Datový port"]
[139,"EG_ Signál ASŘ / Datový port"]
[140,"EG_ Signál ASŘ / Datový port"]
[141,"EG_ Signál ASŘ / Datový port"]
[142,"EG_ Signál ASŘ / Datový port"]
[143,"EG_ Signál ASŘ / Datový port"]
[144,"EG_ Signál ASŘ / Datový port"]
[145,"EG_ Signál ASŘ / Datový port"]
[146,"EG_ Signál ASŘ / Datový port"]
[147,"EG_ Signál ASŘ / Datový port"]
[148,"EG_ Signál ASŘ / Datový port"]
[149,"EG_ Signál ASŘ / Datový port"]
[150,"EG_ Signál ASŘ / Datový port"]
[151,"EG_ Signál ASŘ / Datový port"]
[152,"EG_ Signál ASŘ / Datový port"]
[153,"EG_ Signál ASŘ / Datový port"]
[154,"EG_ Signál ASŘ / Datový port"]
[155,"EG_ Signál ASŘ / Datový port"]
[156,"EG_ Signál ASŘ / Datový port"]
[157,"EG_ Signál ASŘ / Datový port"]
[158,"EG_ Signál ASŘ / Datový port"]
[159,"EG_ Signál ASŘ / Datový port"]
[160,"EG_ Signál ASŘ / Datový port"]
[161,"EG_ Signál ASŘ / Datový port"]
[162,"EG_ Signál ASŘ / Datový port"]
[163,"EG_ Signál ASŘ / Datový port"]
[164,"EG_ Signál ASŘ / Datový port"]
[165,"EG_ Signál ASŘ / Datový port"]
[166,"EG_ Signál ASŘ / Datový port"]
[167,"EG_ Signál ASŘ / Datový port"]
[168,"EG_ Signál ASŘ / Datový port"]
[169,"EG_ Signál ASŘ / Datový port"]
[170,"EG_ Signál ASŘ / Datový port"]
[171,"EG_ Signál ASŘ / Datový port"]
[172,"EG_ Signál ASŘ / Datový port"]
[173,"EG_ Signál ASŘ / Datový port"]
[174,"EG_ Signál ASŘ / Datový port"]
[175,"EG_ Signál ASŘ / Datový port"]
[176,"EG_ Signál ASŘ / Datový port"]
[177,"EG_ Signál ASŘ / Datový port"]
[178,"EG_ Signál ASŘ / Datový port"]
[179,"EG_ Signál ASŘ / Datový port"]
[180,"EG_ Signál ASŘ / Datový port"]
[181,"EG_ Signál ASŘ / Datový port"]
[182,"EG_ Signál ASŘ / Datový port"]
[183,"EG_ Signál ASŘ / Datový port"]
[184,"EG_ Signál ASŘ / Datový port"]
[185,"EG_ Signál ASŘ / Datový port"]
[186,"EG_ Signál ASŘ / Datový port"]
[187,"EG_ Signál ASŘ / Datový port"]
[188,"EG_ Signál ASŘ / Datový port"]
[189,"EG_ Signál ASŘ / Datový port"]
[190,"EG_ Signál ASŘ / Datový port"]
[191,"EG_ Signál ASŘ / Datový port"]
[192,"EG_ Signál ASŘ / Datový port"]
[193,"EG_ Signál ASŘ / Datový port"]
[194,"EG_ Signál ASŘ / Datový port"]
[195,"EG_ Signál ASŘ / Datový port"]
[196,"EG_ Signál ASŘ / Datový port"]
[197,"EG_ Signál ASŘ / Datový port"]
[198,"EG_ Signál ASŘ / Datový port"]
[199,"EG_ Signál ASŘ / Datový port"]
[200,"EG_ Signál ASŘ / Datový port"]
[201,"EG_ Signál ASŘ / Datový port"]
[202,"EG_ Signál ASŘ / Datový port"]
[203,"EG_ Signál ASŘ / Datový port"]
[204,"EG_ Signál ASŘ / Datový port"]
[205,"EG_ Signál ASŘ / Datový port"]
[206,"EG_ Signál ASŘ / Datový port"]
[207,"EG_ Signál ASŘ / Datový port"]
[208,"EG_ Signál ASŘ / Datový port"]
[209,"EG_ Signál ASŘ / Datový port"]
[210,"EG_ Signál ASŘ / Datový port"]
[211,"EG_ Signál ASŘ / Datový port"]
[212,"EG_ Signál ASŘ / Datový port"]
[213,"EG_ Signál ASŘ / Datový port"]
[214,"EG_ Signál ASŘ / Datový port"]
[215,"EG_ Signál ASŘ / Datový port"]
[216,"EG_ Signál ASŘ / Datový port"]
[217,"EG_ Signál ASŘ / Datový port"]
[218,"EG_ Signál ASŘ / Datový port"]
[219,"EG_ Signál ASŘ / Datový port"]
[220,"EG_ Signál ASŘ / Datový port"]
[221,"EG_ Signál ASŘ / Datový port"]
[222,"EG_ Signál ASŘ / Datový port"]
[223,"EG_ Signál ASŘ / Datový port"]
[224,"EG_ Signál ASŘ / Datový port"]
[225,"EG_ Signál ASŘ / Datový port"]
[226,"EG_ Signál ASŘ / Datový port"]
[227,"EG_ Signál ASŘ / Datový port"]
[228,"EG_ Signál ASŘ / Datový port"]
[229,"EG_ Signál ASŘ / Datový port"]
[230,"EG_ Signál ASŘ / Datový port"]
[231,"EG_ Signál ASŘ / Datový port"]
[232,"EG_ Signál ASŘ / Datový port"]
[233,"EG_ Signál ASŘ / Datový port"]
[234,"EG_ Signál ASŘ / Datový port"]
[235,"EG_ Signál ASŘ / Datový port"]
[236,"EG_ Signál ASŘ / Datový port"]
[237,"EG_ Signál ASŘ / Datový port"]
[238,"EG_ Signál ASŘ / Datový port"]
[239,"EG_ Signál ASŘ / Datový port"]
[240,"EG_ Signál ASŘ / Datový port"]
[241,"EG_ Signál ASŘ / Datový port"]
[242,"EG_ Signál ASŘ / Datový port"]
[243,"EG_ Signál ASŘ / Datový port"]
[244,"EG_ Signál ASŘ / Datový port"]
[245,"EG_ Signál ASŘ / Datový port"]
[246,"EG_ Signál ASŘ / Datový port"]
[247,"EG_ Signál ASŘ / Datový port"]
[248,"EG_ Signál ASŘ / Datový port"]
[249,"EG_ Signál ASŘ / Datový port"]
[250,"EG_ Signál ASŘ / Datový port"]
[251,"EG_ Signál ASŘ / Datový port"]
[252,"EG_ Signál ASŘ / Datový port"]
[253,"EG_ Signál ASŘ / Datový port"]
[254,"EG_ Signál ASŘ / Datový port"]
[255,"EG_ Signál ASŘ / Datový port"]
[256,"EG_ Signál ASŘ / Datový port"]
[257,"EG_ Signál ASŘ / Datový port"]
[258,"EG_ Signál ASŘ / Datový port"]
[259,"EG_ Signál ASŘ / Datový port"]
[260,"EG_ Signál ASŘ / Datový port"]
[261,"EG_ Signál ASŘ / Datový port"]
[262,"EG_ Signál ASŘ / Datový port"]
[263,"EG_ Signál ASŘ / Datový port"]
[264,"EG_ Signál ASŘ / Datový port"]
[265,"EG_ Signál ASŘ / Datový port"]
[266,"EG_ Signál ASŘ / Datový port"]
[267,"EG_ Signál ASŘ / Datový port"]
[268,"EG_ Signál ASŘ / Datový port"]
[269,"EG_ Signál ASŘ / Datový port"]
[270,"EG_ Signál ASŘ / Datový port"]
[271,"EG_ Signál ASŘ / Datový port"]
[272,"EG_ Signál ASŘ / Datový port"]
[273,"EG_ Signál ASŘ / Datový port"]
[274,"EG_ Signál ASŘ / Datový port"]
[275,"EG_ Signál ASŘ / Datový port"]
[276,"EG_ Signál ASŘ / Datový port"]
[277,"EG_ Signál ASŘ / Datový port"]
[278,"EG_ Signál ASŘ / Datový port"]
[279,"EG_ Signál ASŘ / Datový port"]
[280,"EG_ Signál ASŘ / Datový port"]
[281,"EG_ Signál ASŘ / Datový port"]
[282,"EG_ Signál ASŘ / Datový port"]
[283,"EG_ Signál ASŘ / Datový port"]
[284,"EG_ Signál ASŘ / Datový port"]
[285,"EG_ Signál ASŘ / Datový port"]
[286,"EG_ Signál ASŘ / Datový port"]
[287,"EG_ Signál ASŘ / Datový port"]
[288,"EG_ Signál ASŘ / Datový port"]
[289,"EG_ Signál ASŘ / Datový port"]
[290,"EG_ Signál ASŘ / Datový port"]
[291,"EG_ Signál ASŘ / Datový port"]
[292,"EG_ Signál ASŘ / Datový port"]
[293,"EG_ Signál ASŘ / Datový port"]
[294,"EG_ Signál ASŘ / Datový port"]
[295,"EG_ Signál ASŘ / Datový port"]
[296,"EG_ Signál ASŘ / Datový port"]
[297,"EG_ Signál ASŘ / Datový port"]
[298,"EG_ Signál ASŘ / Datový port"]
[299,"EG_ Signál ASŘ / Datový port"]
[300,"EG_ Signál ASŘ / Datový port"]
[301,"EG_ Signál ASŘ / Datový port"]
[302,"EG_ Signál ASŘ / Datový port"]
[303,"EG_ Signál ASŘ / Datový port"]
[304,"EG_ Signál ASŘ / Datový port"]
[305,"EG_ Signál ASŘ / Datový port"]
[306,"EG_ Signál ASŘ / Datový port"]
[307,"EG_ Signál ASŘ / Datový port"]
[308,"EG_ Signál ASŘ / Datový port"]
[309,"EG_ Signál ASŘ / Datový port"]
[310,"EG_ Signál ASŘ / Datový port"]
[311,"EG_ Signál ASŘ / Datový port"]
[312,"EG_ Signál ASŘ / Datový port"]
[313,"EG_ Signál ASŘ / Datový port"]
[314,"EG_ Signál ASŘ / Datový port"]
[315,"EG_ Signál ASŘ / Datový port"]
[316,"EG_ Signál ASŘ / Datový port"]
[317,"EG_ Signál ASŘ / Datový port"]
[318,"EG_ Signál ASŘ / Datový port"]
[319,"EG_ Signál ASŘ / Datový port"]
[320,"EG_ Signál ASŘ / Datový port"]
[321,"EG_ Signál ASŘ / Datový port"]
[322,"EG_ Signál ASŘ / Datový port"]
[323,"EG_ Signál ASŘ / Datový port"]
[324,"EG_ Signál ASŘ / Datový port"]
[325,"EG_ Signál ASŘ / Datový port"]
[326,"EG_ Signál ASŘ / Datový port"]
[327,"EG_ Signál ASŘ / Datový port"]
[328,"EG_ Signál ASŘ / Datový port"]
[329,"EG_ Signál ASŘ / Datový port"]
[330,"EG_ Signál ASŘ / Datový port"]
[331,"EG_ Signál ASŘ / Datový port"]
[332,"EG_ Signál ASŘ / Datový port"]
[333,"EG_ Signál ASŘ / Datový port"]
[334,"EG_ Signál ASŘ / Datový port"]
[335,"EG_ Signál ASŘ / Datový port"]
[336,"EG_ Signál ASŘ / Datový port"]
[337,"EG_ Signál ASŘ / Datový port"]
[338,"EG_ Signál ASŘ / Datový port"]
[339,"EG_ Signál ASŘ / Datový port"]
[340,"EG_ Signál ASŘ / Datový port"]
[341,"EG_ Signál ASŘ / Datový port"]
[342,"EG_ Signál ASŘ / Datový port"]
[343,"EG_ Signál ASŘ / Datový port"]
[344,"EG_ Signál ASŘ / Datový port"]
[345,"EG_ Signál ASŘ / Datový port"]
[346,"EG_ Signál ASŘ / Datový port"]
[347,"EG_ Signál ASŘ / Datový port"]
[348,"EG_ Signál ASŘ / Datový port"]
[349,"EG_ Signál ASŘ / Datový port"]
[350,"EG_ Signál ASŘ / Datový port"]
[351,"EG_ Signál ASŘ / Datový port"]
[352,"EG_ Signál ASŘ / Datový port"]
[353,"EG_ Signál ASŘ / Datový port"]
[354,"EG_ Signál ASŘ / Datový port"]
[355,"EG_ Signál ASŘ / Datový port"]
[356,"EG_ Signál ASŘ / Datový port"]
[357,"EG_ Signál ASŘ / Datový port"]
[358,"EG_ Signál ASŘ / Datový port"]
[359,"EG_ Signál ASŘ / Datový port"]
[360,"EG_ Signál ASŘ / Datový port"]
[361,"EG_ Signál ASŘ / Datový port"]
[362,"EG_ Signál ASŘ / Datový port"]
[363,"EG_ Signál ASŘ / Datový port"]
[364,"EG_ Signál ASŘ / Datový port"]
[365,"EG_ Signál ASŘ / Datový port"]
[366,"EG_ Signál ASŘ / Datový port"]
[367,"EG_ Signál ASŘ / Datový port"]
[368,"EG_ Signál ASŘ / Datový port"]
[369,"EG_ Signál ASŘ / Datový port"]
[370,"EG_ Signál ASŘ / Datový port"]
[371,"EG_ Signál ASŘ / Datový port"]
[372,"EG_ Signál ASŘ / Datový port"]
[373,"EG_ Signál ASŘ / Datový port"]
[374,"EG_ Signál ASŘ / Datový port"]
[375,"EG_ Signál ASŘ / Datový port"]
[376,"EG_ Signál ASŘ / Datový port"]
[377,"EG_ Signál ASŘ / Datový port"]
[378,"EG_ Signál ASŘ / Datový port"]
[379,"EG_ Signál ASŘ / Datový port"]
[380,"EG_ Signál ASŘ / Datový port"]
[381,"EG_ Signál ASŘ / Datový port"]
[382,"EG_ Signál ASŘ / Datový port"]
[383,"EG_ Signál ASŘ / Datový port"]
[384,"EG_ Signál ASŘ / Datový port"]
[385,"EG_ Signál ASŘ / Datový port"]
[386,"EG_ Signál ASŘ / Datový port"]
[387,"EG_ Signál ASŘ / Datový port"]
[388,"EG_ Signál ASŘ / Datový port"]
[389,"EG_ Signál ASŘ / Datový port"]
[390,"EG_ Signál ASŘ / Datový port"]
[391,"EG_ Signál ASŘ / Datový port"]
[392,"EG_ Signál ASŘ / Datový port"]
[393,"EG_ Signál ASŘ / Datový port"]
[394,"EG_ Signál ASŘ / Datový port"]
[395,"EG_ Signál ASŘ / Datový port"]
[396,"EG_ Signál ASŘ / Datový port"]
[397,"EG_ Signál ASŘ / Datový port"]
[398,"EG_ Signál ASŘ / Datový port"]
[399,"EG_ Signál ASŘ / Datový port"]
[400,"EG_ Signál ASŘ / Datový port"]
[401,"EG_ Signál ASŘ / Datový port"]
[402,"EG_ Signál ASŘ / Datový port"]
[403,"EG_ Signál ASŘ / Datový port"]
[404,"EG_ Signál ASŘ / Datový port"]
[405,"EG_ Signál ASŘ / Datový port"]
[406,"EG_ Signál ASŘ / Datový port"]
[407,"EG_ Signál ASŘ / Datový port"]
[408,"EG_ Signál ASŘ / Datový port"]
[409,"EG_ Signál ASŘ / Datový port"]
[410,"EG_ Signál ASŘ / Datový port"]
[411,"EG_ Signál ASŘ / Datový port"]
[412,"EG_ Signál ASŘ / Datový port"]
[413,"EG_ Signál ASŘ / Datový port"]
[414,"EG_ Signál ASŘ / Datový port"]
[415,"EG_ Signál ASŘ / Datový port"]
[416,"EG_ Signál ASŘ / Datový port"]
[417,"EG_ Signál ASŘ / Datový port"]
[418,"EG_ Signál ASŘ / Datový port"]
[419,"EG_ Signál ASŘ / Datový port"]
[420,"EG_ Signál ASŘ / Datový port"]
[421,"EG_ Signál ASŘ / Datový port"]
[422,"EG_ Signál ASŘ / Datový port"]
[423,"EG_ Signál ASŘ / Datový port"]
[424,"EG_ Signál ASŘ / Datový port"]
[425,"EG_ Signál ASŘ / Datový port"]
[426,"EG_ Signál ASŘ / Datový port"]
[427,"EG_ Signál ASŘ / Datový port"]
[428,"EG_ Signál ASŘ / Datový port"]
[429,"EG_ Signál ASŘ / Datový port"]
[430,"EG_ Signál ASŘ / Datový port"]
[431,"EG_ Signál ASŘ / Datový port"]
[432,"EG_ Signál ASŘ / Datový port"]
[433,"EG_ Signál ASŘ / Datový port"]
[434,"EG_ Signál ASŘ / Datový port"]
[435,"EG_ Signál ASŘ / Datový port"]
[436,"EG_ Signál ASŘ / Datový port"]
[437,"EG_ Signál ASŘ / Datový port"]
[438,"EG_ Signál ASŘ / Datový port"]
[439,"EG_ Signál ASŘ / Datový port"]
[440,"EG_ Signál ASŘ / Datový port"]
[441,"EG_ Signál ASŘ / Datový port"]
[442,"EG_ Signál ASŘ / Datový port"]
[443,"EG_ Signál ASŘ / Datový port"]
[444,"EG_ Signál ASŘ / Datový port"]
[445,"EG_ Signál ASŘ / Datový port"]
[446,"EG_ Signál ASŘ / Datový port"]
[447,"EG_ Signál ASŘ / Datový port"]
[448,"EG_ Signál ASŘ / Datový port"]
[449,"EG_ Signál ASŘ / Datový port"]
[450,"EG_ Signál ASŘ / Datový port"]
[451,"EG_ Signál ASŘ / Datový port"]
[452,"EG_ Signál ASŘ / Datový port"]
[453,"EG_ Signál ASŘ / Datový port"]
[454,"EG_ Signál ASŘ / Datový port"]
[455,"EG_ Signál ASŘ / Datový port"]
[456,"EG_ Signál ASŘ / Datový port"]
[457,"EG_ Signál ASŘ / Datový port"]
[458,"EG_ Signál ASŘ / Datový port"]
[459,"EG_ Signál ASŘ / Datový port"]
[460,"EG_ Signál ASŘ / Datový port"]
[461,"EG_ Signál ASŘ / Datový port"]
[462,"EG_ Signál ASŘ / Datový port"]
[463,"EG_ Signál ASŘ / Datový port"]
[464,"EG_ Signál ASŘ / Datový port"]
[465,"EG_ Signál ASŘ / Datový port"]
[466,"EG_ Signál ASŘ / Datový port"]
[467,"EG_ Signál ASŘ / Datový port"]
[468,"EG_ Signál ASŘ / Datový port"]
[469,"EG_ Signál ASŘ / Datový port"]
[470,"EG_ Signál ASŘ / Datový port"]
[471,"EG_ Signál ASŘ / Datový port"]
[472,"EG_ Signál ASŘ / Datový port"]
[473,"EG_ Signál ASŘ / Datový port"]
[474,"EG_ Signál ASŘ / Datový port"]
[475,"EG_ Signál ASŘ / Datový port"]
[476,"EG_ Signál ASŘ / Datový port"]
[477,"EG_ Signál ASŘ / Datový port"]
[478,"EG_ Signál ASŘ / Datový port"]
[479,"EG_ Signál ASŘ / Datový port"]
[480,"EG_ Signál ASŘ / Datový port"]
[481,"EG_ Signál ASŘ / Datový port"]
[482,"EG_ Signál ASŘ / Datový port"]
[483,"EG_ Signál ASŘ / Datový port"]
[484,"EG_ Signál ASŘ / Datový port"]
[485,"EG_ Signál ASŘ / Datový port"]
[486,"EG_ Signál ASŘ / Datový port"]
[487,"EG_ Signál ASŘ / Datový port"]
[488,"EG_ Signál ASŘ / Datový port"]
[489,"EG_ Signál ASŘ / Datový port"]
[490,"EG_ Signál ASŘ / Datový port"]
[491,"EG_ Signál ASŘ / Datový port"]
[492,"EG_ Signál ASŘ / Datový port"]
[493,"EG_ Signál ASŘ / Datový port"]
[494,"EG_ Signál ASŘ / Datový port"]
[495,"EG_ Signál ASŘ / Datový port"]
[496,"EG_ Signál ASŘ / Datový port"]
[497,"EG_ Signál ASŘ / Datový port"]
[498,"EG_ Signál ASŘ / Datový port"]
[499,"EG_ Signál ASŘ / Datový port"]
[500,"EG_ Signál ASŘ / Datový port"]
[501,"EG_ Signál ASŘ / Datový port"]
[502,"EG_ Signál ASŘ / Datový port"]
[503,"EG_ Signál ASŘ / Datový port"]
[504,"EG_ Signál ASŘ / Datový port"]
[505,"EG_ Signál ASŘ / Datový port"]
[506,"EG_ Signál ASŘ / Datový port"]
[507,"EG_ Signál ASŘ / Datový port"]
[508,"EG_ Signál ASŘ / Datový port"]
[509,"EG_ Signál ASŘ / Datový port"]
[510,"EG_ Signál ASŘ / Datový port"]
[511,"EG_ Signál ASŘ / Datový port"]
[512,"EG_ Signál ASŘ / Datový port"]
[513,"EG_ Signál ASŘ / Datový port"]
[514,"EG_ Signál ASŘ / Datový port"]
[515,"EG_ Signál ASŘ / Datový port"]
[516,"EG_ Signál ASŘ / Datový port"]
[517,"EG_ Signál ASŘ / Datový port"]
[518,"EG_ Signál ASŘ / Datový port"]
[519,"EG_ Signál ASŘ / Datový port"]
[520,"EG_ Signál ASŘ / Datový port"]
[521,"EG_ Signál ASŘ / Datový port"]
[522,"EG_ Signál ASŘ / Datový port"]
[523,"EG_ Signál ASŘ / Datový port"]
[524,"EG_ Signál ASŘ / Datový port"]
[525,"EG_ Signál ASŘ / Datový port"]
[526,"EG_ Signál ASŘ / Datový port"]
[527,"EG_ Signál ASŘ / Datový port"]
[528,"EG_ Signál ASŘ / Datový port"]
[529,"EG_ Signál ASŘ / Datový port"]
[530,"EG_ Signál ASŘ / Datový port"]
[531,"EG_ Signál ASŘ / Datový port"]
[532,"EG_ Signál ASŘ / Datový port"]
[533,"EG_ Signál ASŘ / Datový port"]
[534,"EG_ Signál ASŘ / Datový port"]
[535,"EG_ Signál ASŘ / Datový port"]
[536,"EG_ Signál ASŘ / Datový port"]
[537,"EG_ Signál ASŘ / Datový port"]
[538,"EG_ Signál ASŘ / Datový port"]
[539,"EG_ Signál ASŘ / Datový port"]
[540,"EG_ Signál ASŘ / Datový port"]
[541,"EG_ Signál ASŘ / Datový port"]
[542,"EG_ Signál ASŘ / Datový port"]
[543,"EG_ Signál ASŘ / Datový port"]
[544,"EG_ Signál ASŘ / Datový port"]
[545,"EG_ Signál ASŘ / Datový port"]
[546,"EG_ Signál ASŘ / Datový port"]
[547,"EG_ Signál ASŘ / Datový port"]
[548,"EG_ Signál ASŘ / Datový port"]
[549,"EG_ Signál ASŘ / Datový port"]
[550,"EG_ Signál ASŘ / Datový port"]
[551,"EG_ Signál ASŘ / Datový port"]
[552,"EG_ Signál ASŘ / Datový port"]
[553,"EG_ Signál ASŘ / Datový port"]
[554,"EG_ Signál ASŘ / Datový port"]
[555,"EG_ Signál ASŘ / Datový port"]
[556,"EG_ Signál ASŘ / Datový port"]
[557,"EG_ Signál ASŘ / Datový port"]
[558,"EG_ Signál ASŘ / Datový port"]
[559,"EG_ Signál ASŘ / Datový port"]
[560,"EG_ Signál ASŘ / Datový port"]
[561,"EG_ Signál ASŘ / Datový port"]
[562,"EG_ Signál ASŘ / Datový port"]
[563,"EG_ Signál ASŘ / Datový port"]
[564,"EG_ Signál ASŘ / Datový port"]
[565,"EG_ Signál ASŘ / Datový port"]
[566,"EG_ Signál ASŘ / Datový port"]
[567,"EG_ Signál ASŘ / Datový port"]
[568,"EG_ Signál ASŘ / Datový port"]
[569,"EG_ Signál ASŘ / Datový port"]
[570,"EG_ Signál ASŘ / Datový port"]
[571,"EG_ Signál ASŘ / Datový port"]
[572,"EG_ Signál ASŘ / Datový port"]
[573,"EG_ Signál ASŘ / Datový port"]
[574,"EG_ Signál ASŘ / Datový port"]
[575,"EG_ Signál ASŘ / Datový port"]
[576,"EG_ Signál ASŘ / Datový port"]
[577,"EG_ Signál ASŘ / Datový port"]
[578,"EG_ Signál ASŘ / Datový port"]
[579,"EG_ Signál ASŘ / Datový port"]
[580,"EG_ Signál ASŘ / Datový port"]
[581,"EG_ Signál ASŘ / Datový port"]
[582,"EG_ Signál ASŘ / Datový port"]
[583,"EG_ Signál ASŘ / Datový port"]
[584,"EG_ Signál ASŘ / Datový port"]
[585,"EG_ Signál ASŘ / Datový port"]
[586,"EG_ Signál ASŘ / Datový port"]
[587,"EG_ Signál ASŘ / Datový port"]
[588,"EG_ Signál ASŘ / Datový port"]
[589,"EG_ Signál ASŘ / Datový port"]
[590,"EG_ Signál ASŘ / Datový port"]
[591,"EG_ Signál ASŘ / Datový port"]
[592,"EG_ Signál ASŘ / Datový port"]
[593,"EG_ Signál ASŘ / Datový port"]
[594,"EG_ Signál ASŘ / Datový port"]
[595,"EG_ Signál ASŘ / Datový port"]
[596,"EG_ Signál ASŘ / Datový port"]
[597,"EG_ Signál ASŘ / Datový port"]
[598,"EG_ Signál ASŘ / Datový port"]
[599,"EG_ Signál ASŘ / Datový port"]
[600,"EG_ Signál ASŘ / Datový port"]
[601,"EG_ Signál ASŘ / Datový port"]
[602,"EG_ Signál ASŘ / Datový port"]
[603,"EG_ Signál ASŘ / Datový port"]
[604,"EG_ Signál ASŘ / Datový port"]
[605,"EG_ Signál ASŘ / Datový port"]
[606,"EG_ Signál ASŘ / Datový port"]
[607,"EG_ Signál ASŘ / Datový port"]
[608,"EG_ Signál ASŘ / Datový port"]
[609,"EG_ Signál ASŘ / Datový port"]
[610,"EG_ Signál ASŘ / Datový port"]
[611,"EG_ Signál ASŘ / Datový port"]
[612,"EG_ Signál ASŘ / Datový port"]
[613,"EG_ Signál ASŘ / Datový port"]
[614,"EG_ Signál ASŘ / Datový port"]
[615,"EG_ Signál ASŘ / Datový port"]
[616,"EG_ Signál ASŘ / Datový port"]
[617,"EG_ Signál ASŘ / Datový port"]
[618,"EG_ Signál ASŘ / Datový port"]
[619,"EG_ Signál ASŘ / Datový port"]
[620,"EG_ Signál ASŘ / Datový port"]
[621,"EG_ Signál ASŘ / Datový port"]
[622,"EG_ Signál ASŘ / Datový port"]
[623,"EG_ Signál ASŘ / Datový port"]
[624,"EG_ Signál ASŘ / Datový port"]
[625,"EG_ Signál ASŘ / Datový port"]
[626,"EG_ Signál ASŘ / Datový port"]
[627,"EG_ Signál ASŘ / Datový port"]
[628,"EG_ Signál ASŘ / Datový port"]
[629,"EG_ Signál ASŘ / Datový port"]
[630,"EG_ Signál ASŘ / Datový port"]
[631,"EG_ Signál ASŘ / Datový port"]
[632,"EG_ Signál ASŘ / Datový port"]
[633,"EG_ Signál ASŘ / Datový port"]
[634,"EG_ Signál ASŘ / Datový port"]
[635,"EG_ Signál ASŘ / Datový port"]
[636,"EG_ Signál ASŘ / Datový port"]
[637,"EG_ Signál ASŘ / Datový port"]
[638,"EG_ Signál ASŘ / Datový port"]
[639,"EG_ Signál ASŘ / Datový port"]
[640,"EG_ Signál ASŘ / Datový port"]
[641,"EG_ Signál ASŘ / Datový port"]
[642,"EG_ Signál ASŘ / Datový port"]
[643,"EG_ Signál ASŘ / Datový port"]
[644,"EG_ Signál ASŘ / Datový port"]
[645,"EG_ Signál ASŘ / Datový port"]
[646,"EG_ Signál ASŘ / Datový port"]
[647,"EG_ Signál ASŘ / Datový port"]
[648,"EG_ Signál ASŘ / Datový port"]
[649,"EG_ Signál ASŘ / Datový port"]
[650,"EG_ Signál ASŘ / Datový port"]
[651,"EG_ Signál ASŘ / Datový port"]
[652,"EG_ Signál ASŘ / Datový port"]
[653,"EG_ Signál ASŘ / Datový port"]
[654,"EG_ Signál ASŘ / Datový port"]
[655,"EG_ Signál ASŘ / Datový port"]
[656,"EG_ Signál ASŘ / Datový port"]
[657,"EG_ Signál ASŘ / Datový port"]
[658,"EG_ Signál ASŘ / Datový port"]
[659,"EG_ Signál ASŘ / Datový port"]
[660,"EG_ Signál ASŘ / Datový port"]
[661,"EG_ Signál ASŘ / Datový port"]
[662,"EG_ Signál ASŘ / Datový port"]
[663,"EG_ Signál ASŘ / Datový port"]
[664,"EG_ Signál ASŘ / Datový port"]
[665,"EG_ Signál ASŘ / Datový port"]
[666,"EG_ Signál ASŘ / Datový port"]
[667,"EG_ Signál ASŘ / Datový port"]
[668,"EG_ Signál ASŘ / Datový port"]
[669,"EG_ Signál ASŘ / Datový port"]
[670,"EG_ Signál ASŘ / Datový port"]
[671,"EG_ Signál ASŘ / Datový port"]
[672,"EG_ Signál ASŘ / Datový port"]
[673,"EG_ Signál ASŘ / Datový port"]
[674,"EG_ Signál ASŘ / Datový port"]
[675,"EG_ Signál ASŘ / Datový port"]
[676,"EG_ Signál ASŘ / Datový port"]
[677,"EG_ Signál ASŘ / Datový port"]
[678,"EG_ Signál ASŘ / Datový port"]
[679,"EG_ Signál ASŘ / Datový port"]
[680,"EG_ Signál ASŘ / Datový port"]
[681,"EG_ Signál ASŘ / Datový port"]
[682,"EG_ Signál ASŘ / Datový port"]
[683,"EG_ Signál ASŘ / Datový port"]
[684,"EG_ Signál ASŘ / Datový port"]
[685,"EG_ Signál ASŘ / Datový port"]
[686,"EG_ Signál ASŘ / Datový port"]
[687,"EG_ Signál ASŘ / Datový port"]
[688,"EG_ Signál ASŘ / Datový port"]
[689,"EG_ Signál ASŘ / Datový port"]
[690,"EG_ Signál ASŘ / Datový port"]
[691,"EG_ Signál ASŘ / Datový port"]
[692,"EG_ Signál ASŘ / Datový port"]
[693,"EG_ Signál ASŘ / Datový port"]
[694,"EG_ Signál ASŘ / Datový port"]
[695,"EG_ Signál ASŘ / Datový port"]
[696,"EG_ Signál ASŘ / Datový port"]
[697,"EG_ Signál ASŘ / Datový port"]
[698,"EG_ Signál ASŘ / Datový port"]
[699,"EG_ Signál ASŘ / Datový port"]
[700,"EG_ Signál ASŘ / Datový port"]
[701,"EG_ Signál ASŘ / Datový port"]
[702,"EG_ Signál ASŘ / Datový port"]
[703,"EG_ Signál ASŘ / Datový port"]
[704,"EG_ Signál ASŘ / Datový port"]
[705,"EG_ Signál ASŘ / Datový port"]
[706,"EG_ Signál ASŘ / Datový port"]
[707,"EG_ Signál ASŘ / Datový port"]
[708,"EG_ Signál ASŘ / Datový port"]
[709,"EG_ Signál ASŘ / Datový port"]
[710,"EG_ Signál ASŘ / Datový port"]
[711,"EG_ Signál ASŘ / Datový port"]
[712,"EG_ Signál ASŘ / Datový port"]
[713,"EG_ Signál ASŘ / Datový port"]
[714,"EG_ Signál ASŘ / Datový port"]
[715,"EG_ Signál ASŘ / Datový port"]
[716,"EG_ Signál ASŘ / Datový port"]
[717,"EG_ Signál ASŘ / Datový port"]
[718,"EG_ Signál ASŘ / Datový port"]
[719,"EG_ Signál ASŘ / Datový port"]
[720,"EG_ Signál ASŘ / Datový port"]
[721,"EG_ Signál ASŘ / Datový port"]
[722,"EG_ Signál ASŘ / Datový port"]
[723,"EG_ Signál ASŘ / Datový port"]
[724,"EG_ Signál ASŘ / Datový port"]
[725,"EG_ Signál ASŘ / Datový port"]
[726,"EG_ Signál ASŘ / Datový port"]
[727,"EG_ Signál ASŘ / Datový port"]
[728,"EG_ Signál ASŘ / Datový port"]
[729,"EG_ Signál ASŘ / Datový port"]
[730,"EG_ Signál ASŘ / Datový port"]
[731,"EG_ Signál ASŘ / Datový port"]
[732,"EG_ Signál ASŘ / Datový port"]
[733,"EG_ Signál ASŘ / Datový port"]
[734,"EG_ Signál ASŘ / Datový port"]
[735,"EG_ Signál ASŘ / Datový port"]
[736,"EG_ Signál ASŘ / Datový port"]
[737,"EG_ Signál ASŘ / Datový port"]
[738,"EG_ Signál ASŘ / Datový port"]
[739,"EG_ Signál ASŘ / Datový port"]
[740,"EG_ Signál ASŘ / Datový port"]
[741,"EG_ Signál ASŘ / Datový port"]
[742,"EG_ Signál ASŘ / Datový port"]
[743,"EG_ Signál ASŘ / Datový port"]
[744,"EG_ Signál ASŘ / Datový port"]
[745,"EG_ Signál ASŘ / Datový port"]
[746,"EG_ Signál ASŘ / Datový port"]
[747,"EG_ Signál ASŘ / Datový port"]
[748,"EG_ Signál ASŘ / Datový port"]
[749,"EG_ Signál ASŘ / Datový port"]
[750,"EG_ Signál ASŘ / Datový port"]
[751,"EG_ Signál ASŘ / Datový port"]
[752,"EG_ Signál ASŘ / Datový port"]
[753,"EG_ Signál ASŘ / Datový port"]
[754,"EG_ Signál ASŘ / Datový port"]
[755,"EG_ Signál ASŘ / Datový port"]
[756,"EG_ Signál ASŘ / Datový port"]
[757,"EG_ Signál ASŘ / Datový port"]
[758,"EG_ Signál ASŘ / Datový port"]
[759,"EG_ Signál ASŘ / Datový port"]
[760,"EG_ Signál ASŘ / Datový port"]
[761,"EG_ Signál ASŘ / Datový port"]
[762,"EG_ Signál ASŘ / Datový port"]
[763,"EG_ Signál ASŘ / Datový port"]
[764,"EG_ Signál ASŘ / Datový port"]
[765,"EG_ Signál ASŘ / Datový port"]
[766,"EG_ Signál ASŘ / Datový port"]
[767,"EG_ Signál ASŘ / Datový port"]
[768,"EG_ Signál ASŘ / Datový port"]
[769,"EG_ Signál ASŘ / Datový port"]
[770,"EG_ Signál ASŘ / Datový port"]
[771,"EG_ Signál ASŘ / Datový port"]
[772,"EG_ Signál ASŘ / Datový port"]
[773,"EG_ Signál ASŘ / Datový port"]
[774,"EG_ Signál ASŘ / Datový port"]
[775,"EG_ Signál ASŘ / Datový port"]
[776,"EG_ Signál ASŘ / Datový port"]
[777,"EG_ Signál ASŘ / Datový port"]
[778,"EG_ Signál ASŘ / Datový port"]
[779,"EG_ Signál ASŘ / Datový port"]
[780,"EG_ Signál ASŘ / Datový port"]
[781,"EG_ Signál ASŘ / Datový port"]
[782,"EG_ Signál ASŘ / Datový port"]
[783,"EG_ Signál ASŘ / Datový port"]
[784,"EG_ Signál ASŘ / Datový port"]
[785,"EG_ Signál ASŘ / Datový port"]
[786,"EG_ Signál ASŘ / Datový port"]
[787,"EG_ Signál ASŘ / Datový port"]
[788,"EG_ Signál ASŘ / Datový port"]
[789,"EG_ Signál ASŘ / Datový port"]
[790,"EG_ Signál ASŘ / Datový port"]
[791,"EG_ Signál ASŘ / Datový port"]
[792,"EG_ Signál ASŘ / Datový port"]
[793,"EG_ Signál ASŘ / Datový port"]
[794,"EG_ Signál ASŘ / Datový port"]
[795,"EG_ Signál ASŘ / Datový port"]
[796,"EG_ Signál ASŘ / Datový port"]
[797,"EG_ Signál ASŘ / Datový port"]
[798,"EG_ Signál ASŘ / Datový port"]
[799,"EG_ Signál ASŘ / Datový port"]
[800,"EG_ Signál ASŘ / Datový port"]
[801,"EG_ Signál ASŘ / Datový port"]
[802,"EG_ Signál ASŘ / Datový port"]
[803,"EG_ Signál ASŘ / Datový port"]
[804,"EG_ Signál ASŘ / Datový port"]
[805,"EG_ Signál ASŘ / Datový port"]
[806,"EG_ Signál ASŘ / Datový port"]
[807,"EG_ Signál ASŘ / Datový port"]
[808,"EG_ Signál ASŘ / Datový port"]
[809,"EG_ Signál ASŘ / Datový port"]
[810,"EG_ Signál ASŘ / Datový port"]
[811,"EG_ Signál ASŘ / Datový port"]
[812,"EG_ Signál ASŘ / Datový port"]
[813,"EG_ Signál ASŘ / Datový port"]
[814,"EG_ Signál ASŘ / Datový port"]
[815,"EG_ Signál ASŘ / Datový port"]
[816,"EG_ Signál ASŘ / Datový port"]
[817,"EG_ Signál ASŘ / Datový port"]
[818,"EG_ Signál ASŘ / Datový port"]
[819,"EG_ Signál ASŘ / Datový port"]
[820,"EG_ Signál ASŘ / Datový port"]
[821,"EG_ Signál ASŘ / Datový port"]
[822,"EG_ Signál ASŘ / Datový port"]
[823,"EG_ Signál ASŘ / Datový port"]
[824,"EG_ Signál ASŘ / Datový port"]
[825,"EG_ Signál ASŘ / Datový port"]
[826,"EG_ Signál ASŘ / Datový port"]
[827,"EG_ Signál ASŘ / Datový port"]
[828,"EG_ Signál ASŘ / Datový port"]
[829,"EG_ Signál ASŘ / Datový port"]
[830,"EG_ Signál ASŘ / Datový port"]
[831,"EG_ Signál ASŘ / Datový port"]
[832,"EG_ Signál ASŘ / Datový port"]
[833,"EG_ Signál ASŘ / Datový port"]
[834,"EG_ Signál ASŘ / Datový port"]
[835,"EG_ Signál ASŘ / Datový port"]
[836,"EG_ Signál ASŘ / Datový port"]
[837,"EG_ Signál ASŘ / Datový port"]
[838,"EG_ Signál ASŘ / Datový port"]
[839,"EG_ Signál ASŘ / Datový port"]
[840,"EG_ Signál ASŘ / Datový port"]
[841,"EG_ Signál ASŘ / Datový port"]
[842,"EG_ Signál ASŘ / Datový port"]
[843,"EG_ Signál ASŘ / Datový port"]
[844,"EG_ Signál ASŘ / Datový port"]
[845,"EG_ Signál ASŘ / Datový port"]
[846,"EG_ Signál ASŘ / Datový port"]
[847,"EG_ Signál ASŘ / Datový port"]
[848,"EG_ Signál ASŘ / Datový port"]
[849,"EG_ Signál ASŘ / Datový port"]
[850,"EG_ Signál ASŘ / Datový port"]
[851,"EG_ Signál ASŘ / Datový port"]
[852,"EG_ Signál ASŘ / Datový port"]
[853,"EG_ Signál ASŘ / Datový port"]
[854,"EG_ Signál ASŘ / Datový port"]
[855,"EG_ Signál ASŘ / Datový port"]
[856,"EG_ Signál ASŘ / Datový port"]
[857,"EG_ Signál ASŘ / Datový port"]
[858,"EG_ Signál ASŘ / Datový port"]
[859,"EG_ Signál ASŘ / Datový port"]
[860,"EG_ Signál ASŘ / Datový port"]
[861,"EG_ Signál ASŘ / Datový port"]
[862,"EG_ Signál ASŘ / Datový port"]
[863,"EG_ Signál ASŘ / Datový port"]
[864,"EG_ Signál ASŘ / Datový port"]
[865,"EG_ Signál ASŘ / Datový port"]
[866,"EG_ Signál ASŘ / Datový port"]
[867,"EG_ Signál ASŘ / Datový port"]
[868,"EG_ Signál ASŘ / Datový port"]
[869,"EG_ Signál ASŘ / Datový port"]
[870,"EG_ Signál ASŘ / Datový port"]
[871,"EG_ Signál ASŘ / Datový port"]
[872,"EG_ Signál ASŘ / Datový port"]
[873,"EG_ Signál ASŘ / Datový port"]
[874,"EG_ Signál ASŘ / Datový port"]
[875,"EG_ Signál ASŘ / Datový port"]
[876,"EG_ Signál ASŘ / Datový port"]
[877,"EG_ Signál ASŘ / Datový port"]
[878,"EG_ Signál ASŘ / Datový port"]
[879,"EG_ Signál ASŘ / Datový port"]
[880,"EG_ Signál ASŘ / Datový port"]
[881,"EG_ Signál ASŘ / Datový port"]
[882,"EG_ Signál ASŘ / Datový port"]
[883,"EG_ Signál ASŘ / Datový port"]
[884,"EG_ Signál ASŘ / Datový port"]
[885,"EG_ Signál ASŘ / Datový port"]
[886,"EG_ Signál ASŘ / Datový port"]
[887,"EG_ Signál ASŘ / Datový port"]
[888,"EG_ Signál ASŘ / Datový port"]
[889,"EG_ Signál ASŘ / Datový port"]
[890,"EG_ Signál ASŘ / Datový port"]
[891,"EG_ Signál ASŘ / Datový port"]
[892,"EG_ Signál ASŘ / Datový port"]
[893,"EG_ Signál ASŘ / Datový port"]
[894,"EG_ Signál ASŘ / Datový port"]
[895,"EG_ Signál ASŘ / Datový port"]
[896,"EG_ Signál ASŘ / Datový port"]
[897,"EG_ Signál ASŘ / Datový port"]
[898,"EG_ Signál ASŘ / Datový port"]
[899,"EG_ Signál ASŘ / Datový port"]
[900,"EG_ Signál ASŘ / Datový port"]
[901,"EG_ Signál ASŘ / Datový port"]
[902,"EG_ Signál ASŘ / Datový port"]
[903,"EG_ Signál ASŘ / Datový port"]
[904,"EG_ Signál ASŘ / Datový port"]
[905,"EG_ Signál ASŘ / Datový port"]
[906,"EG_ Signál ASŘ / Datový port"]
[907,"EG_ Signál ASŘ / Datový port"]
[908,"EG_ Signál ASŘ / Datový port"]
[909,"EG_ Signál ASŘ / Datový port"]
[910,"EG_ Signál ASŘ / Datový port"]
[911,"EG_ Signál ASŘ / Datový port"]
[912,"EG_ Signál ASŘ / Datový port"]
[913,"EG_ Signál ASŘ / Datový port"]
[914,"EG_ Signál ASŘ / Datový port"]
[915,"EG_ Signál ASŘ / Datový port"]
[916,"EG_ Signál ASŘ / Datový port"]
[917,"EG_ Signál ASŘ / Datový port"]
[918,"EG_ Signál ASŘ / Datový port"]
[919,"EG_ Signál ASŘ / Datový port"]
[920,"EG_ Signál ASŘ / Datový port"]
[921,"EG_ Signál ASŘ / Datový port"]
[922,"EG_ Signál ASŘ / Datový port"]
[923,"EG_ Signál ASŘ / Datový port"]
[924,"EG_ Signál ASŘ / Datový port"]
[925,"EG_ Signál ASŘ / Datový port"]
[926,"EG_ Signál ASŘ / Datový port"]
[927,"EG_ Signál ASŘ / Datový port"]
[928,"EG_ Signál ASŘ / Datový port"]
[929,"EG_ Signál ASŘ / Datový port"]
[930,"EG_ Signál ASŘ / Datový port"]
[931,"EG_ Signál ASŘ / Datový port"]
[932,"EG_ Signál ASŘ / Datový port"]
[933,"EG_ Signál ASŘ / Datový port"]
[934,"EG_ Signál ASŘ / Datový port"]
[935,"EG_ Signál ASŘ / Datový port"]
[936,"EG_ Signál ASŘ / Datový port"]
[937,"EG_ Signál ASŘ / Datový port"]
[938,"EG_ Signál ASŘ / Datový port"]
[939,"EG_ Signál ASŘ / Datový port"]
[940,"EG_ Signál ASŘ / Datový port"]
[941,"EG_ Signál ASŘ / Datový port"]
[942,"EG_ Signál ASŘ / Datový port"]
[943,"EG_ Signál ASŘ / Datový port"]
[944,"EG_ Signál ASŘ / Datový port"]
[945,"EG_ Signál ASŘ / Datový port"]
[946,"EG_ Signál ASŘ / Datový port"]
[947,"EG_ Signál ASŘ / Datový port"]
[948,"EG_ Signál ASŘ / Datový port"]
[949,"EG_ Signál ASŘ / Datový port"]
[950,"EG_ Signál ASŘ / Datový port"]
[951,"EG_ Signál ASŘ / Datový port"]
[952,"EG_ Signál ASŘ / Datový port"]
[953,"EG_ Signál ASŘ / Datový port"]
[954,"EG_ Signál ASŘ / Datový port"]
[955,"EG_ Signál ASŘ / Datový port"]
[956,"EG_ Signál ASŘ / Datový port"]
[957,"EG_ Signál ASŘ / Datový port"]
[958,"EG_ Signál ASŘ / Datový port"]
[959,"EG_ Signál ASŘ / Datový port"]
[960,"EG_ Signál ASŘ / Datový port"]
[961,"EG_ Signál ASŘ / Datový port"]
[962,"EG_ Signál ASŘ / Datový port"]
[963,"EG_ Signál ASŘ / Datový port"]
[964,"EG_ Signál ASŘ / Datový port"]
[965,"EG_ Signál ASŘ / Datový port"]
[966,"EG_ Signál ASŘ / Datový port"]
[967,"EG_ Signál ASŘ / Datový port"]
[968,"EG_ Signál ASŘ / Datový port"]
[969,"EG_ Signál ASŘ / Datový port"]
[970,"EG_ Signál ASŘ / Datový port"]
[971,"EG_ Signál ASŘ / Datový port"]
[972,"EG_ Signál ASŘ / Datový port"]
[973,"EG_ Signál ASŘ / Datový port"]
[974,"EG_ Signál ASŘ / Datový port"]
[975,"EG_ Signál ASŘ / Datový port"]
[976,"EG_ Signál ASŘ / Datový port"]
[977,"EG_ Signál ASŘ / Datový port"]
[978,"EG_ Signál ASŘ / Datový port"]
[979,"EG_ Signál ASŘ / Datový port"]
[980,"EG_ Signál ASŘ / Datový port"]
[981,"EG_ Signál ASŘ / Datový port"]
[982,"EG_ Signál ASŘ / Datový port"]
[983,"EG_ Signál ASŘ / Datový port"]
[984,"EG_ Signál ASŘ / Datový port"]
[985,"EG_ Signál ASŘ / Datový port"]
[986,"EG_ Signál ASŘ / Datový port"]
[987,"EG_ Signál ASŘ / Datový port"]
[988,"EG_ Signál ASŘ / Datový port"]
[989,"EG_ Signál ASŘ / Datový port"]
[990,"EG_ Signál ASŘ / Datový port"]
[991,"EG_ Signál ASŘ / Datový port"]
[992,"EG_ Signál ASŘ / Datový port"]
[993,"EG_ Signál ASŘ / Datový port"]
[994,"EG_ Signál ASŘ / Datový port"]
[995,"EG_ Signál ASŘ / Datový port"]
[996,"EG_ Signál ASŘ / Datový port"]
[997,"EG_ Signál ASŘ / Datový port"]

{"sheet":"Návod na vyplnění","index":3,"n_rows":45,"n_cols":5,"rows_kept":45,"cut":false,"hidden":false,"merged":[[44,2,44,4],[38,2,42,4],[3,2,3,4],[4,2,4,4],[23,2,23,4],[35,2,35,4],[22,2,22,4]]}
[]
[]
[]
[null,null,"Návod na vyplnění"]
[null,null,"Seznam signálů"]
[null,null,"Název pole","Obsah pole","Vyplnění"]
[null,null,"Kód třídy MATRIO","Kód třídy nebo podtřídy MATRIO","automatické"]
[null,null,"Označení","Označení signálu obvodu","volný text"]
[null,null,"Název","Název signálu (uvádí parametr, jehož hodnota je signálem přenášená)","volný text"]
[null,null,"Označení pro HMI","Alternativní označení signálu vhodné pro HMI","volný text"]
[null,null,"Obvod","Označení obvodu, který vytváří signál, popř. (pokud se signál v SKŘ nevytváří) který přijímá vnější signál","volný text"]
[null,null,"Kód signálu","Označení signálu bez označení obvodu","volný text"]
[null,null,"Druh","Druh signálu a směr signálu vůči popisovanému systému SKŘ\n(AI = analogový vstup / BI = binární vstup / AO = analogový výstup / BO = binární výstup)","výběr z číselníku"]
[null,null,"Logika","Logika binárního signálu. Pozitivní v případě, že log.1 odpovídá spojení kontaktu či velká hodnota vstupní veličiny. Negativní v případě, že log.1 odpovídá rozpojení kontaktu či malá/nulová hodnota vstupní veličiny\n{NO - pozitivní; NC - negativní}","výběr z číselníku"]
[null,null,"Úroveň","Úroveň el. signálu na vstupu do systému (24VDC / 4-20mA / …)","volný text"]
[null,null,"Napájení","Napájení signálu 4-20mA (INT = ze skříně SKŘ / EXT = z pole)","výběr z číselníku"]
[null,null,"HWSW","HW - signál připojený na ŘP z vnější technologie na příslušný IO modul, SW - signál generovaný v rámci ŘP nebo získávaný pomocí HMI ŘP","výběr z číselníku"]
[null,null,"RsS min","Dolní mez rozsahu signálu fyz. veličiny","volný text"]
[null,null,"RsS max","Horní mez rozsahu signálu fyz. veličiny","volný text"]
[null,null,"RsS jedn","Jednotky signálu fyz. veličiny","volný text"]
[null,null,"Změna","Změna: N=nový, Z=zrušený, S=stávající (např. jiné připojení žil), V=výměna, M=modifikace","výběr z číselníku"]
[null,null,"Poznámka","Poznámka","volný text"]
[null,null,"Tabulku \"Seznam signálů\" vyplňute od prvního řádku, nevynechávejte řádky a pro pohyb použijte rolování."]
[null,null,"Alokace signálů"]
[null,null,"Název pole","Obsah pole","Vyplnění"]
[null,null,"Kód třídy MATRIO","Kód třídy nebo podtřídy MATRIO","automatické"]
[null,null,"Označení signálu","Označení HW signálu obvodu","volný text"]
[null,null,"Skříň IO","Skříň IO modulu, na který je signál připojen","volný text"]
[null,null,"Procesor","Označení PLC (CPU), ve kterém je signál zpracováván","volný text"]
[null,null,"Sběrnice","Rozlišení sběrnice k IO racku","volný text"]
[null,null,"Rack","Označení či pozice IO racku (vany) na sběrnici","volný text"]
[null,null,"Pozice","Označení či pozice IO modulu v racku (vaně)","volný text"]
[null,null,"Kanál","Pozice (kanál) na IO modulu","volný text"]
[null,null,"Modul IO","Typ IO modulu","volný text"]
[null,null,"Poznámka","Poznámka","volný text"]
[null,null,"Tabulku \"Alokace signálů\" vyplňute od prvního řádku, nevynechávejte řádky a pro pohyb použijte rolování."]
[]
[]
[null,null,"UPOZORNĚNÍ:\nTISK JE PŘEDNASTAVEN, tisknou se pouze řádky, kde je vyplněný údaj  \"Označen\"í v tabulce \"Seznam signálů\", \nresp. \"Označení signálu\" v tabulce \"Alokace signálů\" . \nFormáty tisku jsou nastavené dle velikosti tabulky. \nTabulka \"Seznam signálů\" se tiskne na  formát A3 \"na šířku\". Tabulka \"Alokace signálů\" se tiskne na  formát A4 \"na výšku\".\n"]
[]
[]
[]
[]
[]
[null,null,"Pozn. tabulka Alokace signálů nemá povinnou formu, ta závisí na struktuře konkrétního řídicího systému"]

{"sheet":"Číselníky","index":4,"n_rows":12,"n_cols":12,"rows_kept":12,"cut":false,"hidden":false,"merged":[[1,2,1,11],[2,2,2,11],[3,1,5,1]]}
[]
[null,null,"Použité číselníky"]
[null,null,"Vysvětlivky:  Nad názvem atributu: TE+DU = číselník je stejný pro obě elektrárny,  TE nebo DU = číselník je pro každou elektrárnu specifický,  TE <>DU = podmíněné prohození dle vybrané lokality na titulním listu"]
[null,"Aktuálně vybraná lokalita na Titulním listu",1,2,3,4,5,6,7,8,9,10]
[null,null,null,"TE+DU","TE","DU","TE <>DU","TE+DU","TE+DU","TE+DU","TE+DU","TE+DU"]
[null,null,"Lokalita","Stupeň","Typ/Podtyp (ETE)","Typ/Podtyp (EDU)","Typ/Podtyp ","Druh návaznosti","Změna dle JMA","HWSW","Logika","Napájení"]
[null,{"$f":"'Titulní list'!CD14","v":" "}," "," "," "," ",{"$f":"IF($B$7=\"ETE\",E7,IF($B$7=\"EDU\",F7,\" \"))","v":" "}," "," "," "," "," "]
[null,null,"ETE","PDPS","PPPT","H16T ",{"$f":"IF($B$7=\"ETE\",E8,IF($B$7=\"EDU\",F8,\" \"))","v":" "},"AI","N","HW","NO","INT"]
[null,null,"EDU","DoSP","PPPS","H16S",{"$f":"IF($B$7=\"ETE\",E9,IF($B$7=\"EDU\",F9,\" \"))","v":" "},"BI","S","SW","NC","EXT"]
[null,null,null,"PDSŘ","EDST/SKT","H01S",{"$f":"IF($B$7=\"ETE\",E10,IF($B$7=\"EDU\",F10,\" \"))","v":" "},"AO","Z"]
[null,null,null,null,"EDSS/SKT","H01S",{"$f":"IF($B$7=\"ETE\",E11,IF($B$7=\"EDU\",F11,\" \"))","v":" "},"BO","V"]
[null,null,null,null,null,null,null,null,"M"]